Cogmind - Beta 11.1 @@@ ROGUE MODE // 2022.05.28 @ 20:18:25 Player: aoemica Result: Escaped singularity! Performance ------------- Evolutions (9) 4500 Regions Visited (36) 7200 Robots Destroyed (655) 3275 Value Destroyed (37668) 37668 Prototype IDs (307) 6140 Alien Tech Used (12) 2400 Bonus (58471) 58471 TOTAL SCORE: 119654 Bonus ------- High Alert Combat Kills 2557 Follower Combat Kills 2374 Network Hubs Disabled 800 Met Imprinter 300 Destroyed Z-Imprinter 1000 Triggered Deep Caves Wall 500 Exposed GOLEM Chamber 500 Met Warlord at Base 500 MAIN.C Attacked Warlord 500 Warlord Defense Kills 2454 Built Enhanced Grunts 300 Found Hidden Lab 3000 Used Core Reset Matrix 3000 Met R17 at Research 2000 Destroyed MAIN.C Guards 500 Met MAIN.C 5000 Destroyed MAIN.C Shell 5000 Destroyed MAIN.C 10000 Met Warlord at Command 2000 Met Architect 300 Destroyed A8 300 Destroyed A6 400 Destroyed A5 500 Destroyed A4 700 Destroyed Architect 15000 Win 3000 Friendly Fire -4014 Cogmind --------- Core Integrity 147/1600 Matter 228/300 Energy 349/350 System Corruption 0% Temperature Cool (0) Movement Core (50) Location Near Former Tau Ceti IV Parts ------- > --- POWER (4) -------- (None) > --- PROPULSION (6) --- (None) > --- UTILITY (11) ----- (None) > --- WEAPON (4) ------- (None) > --- INVENTORY (9) ---- Armored Heavy Treads High-density Centrium Heavy Treads Null Cannon Core Stripper Sigix Broadsword Peak State ------------ > --- POWER ------------ Improved Quantum Reactor Zero-point Reactor Vortex Chain Reactor > --- PROPULSION ------- Experimental Biometal Heavy Treads Experimental Biometal Heavy Treads High-density Centrium Heavy Treads > --- UTILITY ---------- Desublimator Huge Storage Unit Assembled Combat Suite Experimental Targeting Computer Experimental Targeting Computer Experimental Target Analyzer Improved Armor Integrity Analyzer Experimental Weapon Cycler Heavy Regenerative Plating AEGIS Remote Shield > --- WEAPON ----------- Multirail Multirail Multirail Multirail > --- INVENTORY -------- Improved Quantum Reactor Zero-point Reactor Zero-point Reactor Armored Heavy Treads High-density Centrium Heavy Treads 2N-1CE's Frost Array Experimental Energy Well Experimental Energy Well Experimental Matter Compressor Experimental Matter Compressor Advanced Kinecellerator Advanced Kinecellerator Advanced Kinecellerator Experimental System Purifier Drone Bay Integrity Redistributor Integrity Redistributor Compact HERF Cannon Warp Cannon Null Cannon Multirail Multirail Multirail Core Stripper Sigix Broadsword [Rating: 269] Favorites ----------- Power Quantum Reactor Engine Heavy Deuterium Engine Power Core Micro Nuclear Core Reactor Quantum Reactor Propulsion Light Treads Treads Light Treads Leg Assembled Alloy Leg Hover Unit Zionite Glidesys I Utility Huge Storage Unit Device Assembled Combat Suite Storage Huge Storage Unit Processor Experimental Targeting Computer Hackware Hacking Suite Protection Assembled Alloy Armor Weapon Assembled Focal Cannon Energy Gun Beamcaster Energy Cannon Assembled Focal Cannon Ballistic Gun Multirail Ballistic Cannon Improved Light Cannon Launcher Advanced Micro-nuke Launcher Special Weapon Plasma Cutter Impact Weapon Core Stripper Slashing Weapon Sigix Broadsword Special Melee Weapon Datajack Build | -11 -10 -10 -9 -9 -9 -8 -8 -7 -7 -7 -7 -7 -6 -6 -6 -6 -6 -6 -5 -5 -5 -5 -5 -5 -4 -4 -4 -4 -3 -3 -3 -2 -2 -1 -1 -1 ------- Run | Scr Mat Min Mat Min Exi Min Mat Fac Low Low Zio Dee Pro Fac Ext Cet Arc Hub Fac Was Fac Upp Upp War Pro Fac Arm Lab Res Qua Sec Res Tes Acc Com Ac0 Slots Evolved 18 | . . . 2 . . . 2 2 . . . . . 2 . . . . 2 . . . . . . 2 . . 2 . . 2 . 2 . . Power 3 | . . . . . . . . 1 . . . . . . . . . . . . . . . . . 1 . . . . . . . 1 . . Propulsion 4 | . . . 1 . . . . . . . . . . . . . . . . . . . . . . 1 . . 2 . . . . . . . Utility 9 | . . . 1 . . . 2 1 . . . . . 2 . . . . 2 . . . . . . . . . . . . . . 1 . . Weapon 2 | . . . . . . . . . . . . . . . . . . . . . . . . . . . . . . . . 2 . . . . Parts Attached 959 | . 20 8 20 7 26 2 28 63 16 8 18 37 10 17 3 9 2 7 22 2 20 11 2 18 2 32 34 18 10 86 45 22 83 27 133 91 Power 65 | . 2 1 3 1 . . 4 8 . . 1 2 . . . . . . . . . . . 1 . 2 4 2 2 8 2 4 . 1 11 6 Engine 15 | . 2 1 3 1 . . 3 4 . . 1 . . . . . . . . . . . . . . . . . . . . . . . . . Core 8 | . . . . . . . 1 3 . . . 1 . . . . . . . . . . . . . 1 1 . . 1 . . . . . . Reactor 42 | . . . . . . . . 1 . . . 1 . . . . . . . . . . . 1 . 1 3 2 2 7 2 4 . 1 11 6 Propulsion 99 | . 9 3 7 1 3 2 6 9 1 . . 6 . . . 1 . 2 1 . . . . 4 . 1 3 2 2 17 1 1 2 3 11 1 Treads 76 | . 7 3 7 1 3 1 6 9 1 . . 2 . . . . . . . . . . . . . . . . . 17 1 1 2 3 11 1 Leg 22 | . 2 . . . . 1 . . . . . 3 . . . 1 . 2 1 . . . . 4 . 1 3 2 2 . . . . . . . Wheel . | . . . . . . . . . . . . . . . . . . . . . . . . . . . . . . . . . . . . . Hover 1 | . . . . . . . . . . . . 1 . . . . . . . . . . . . . . . . . . . . . . . . Flight . | . . . . . . . . . . . . . . . . . . . . . . . . . . . . . . . . . . . . . Utility 522 | . 3 3 3 2 10 . 6 25 7 6 6 19 10 17 3 8 2 5 20 . 19 11 2 10 2 29 22 8 5 52 34 14 42 16 65 36 Device 375 | . 1 3 . . 4 . 1 14 5 5 5 8 7 10 1 1 1 5 14 . 14 7 2 8 2 25 16 7 3 36 29 13 40 15 45 28 Storage 32 | . 2 . . . 2 . 1 . . . . 3 . 1 . 2 . . 2 . . . . 1 . 3 3 . . 1 1 1 1 . 6 2 Processor 19 | . . . . . . . 1 2 . . . 1 1 2 . . . . . . . . . 1 . 1 2 . . 1 1 . 1 . 4 1 Hackware 10 | . . . . . . . . 1 . . . . . 1 . . . . . . 1 . . . . . . . . . . . . 1 6 . Protection 86 | . . . 3 2 4 . 3 8 2 1 1 7 2 3 2 5 1 . 4 . 4 4 . . . . 1 1 2 14 3 . . . 4 5 Artifact . | . . . . . . . . . . . . . . . . . . . . . . . . . . . . . . . . . . . . . Weapon 273 | . 6 1 7 3 13 . 12 21 8 2 11 10 . . . . . . 1 2 1 . . 3 . . 5 6 1 9 8 3 39 7 46 48 Energy Gun 5 | . . 1 1 . . . . . . . 1 1 . . . . . . . . . . . . . . . . . . . . . . . 1 Energy Cannon 109 | . 3 . 2 2 . . 3 4 7 1 7 3 . . . . . . . . . . . 2 . . 2 3 . 3 6 2 17 6 19 17 Ballistic Gun 82 | . 1 . 1 . 9 . 6 12 . . . 5 . . . . . . . 2 . . . . . . 1 2 1 3 1 . 4 . 10 24 Ballistic Cannon 6 | . 1 . 2 . . . . . . . . . . . . . . . . . . . . . . . . . . 2 . . . . 1 . Launcher 19 | . . . 1 1 1 . 3 5 1 1 . . . . . . . . . . 1 . . . . . . . . . . . 1 . 4 . Special Weapon 11 | . . . . . 2 . . . . . 2 . . . . . . . 1 . . . . 1 . . 2 1 . . . . . 1 1 . Impact Weapon 25 | . . . . . . . . . . . 1 . . . . . . . . . . . . . . . . . . 1 1 . 15 . 6 1 Slashing Weapon 11 | . . . . . . . . . . . . . . . . . . . . . . . . . . . . . . . . 1 2 . 3 5 Piercing Weapon . | . . . . . . . . . . . . . . . . . . . . . . . . . . . . . . . . . . . . . Special Melee Weapon 5 | . 1 . . . 1 . . . . . . 1 . . . . . . . . . . . . . . . . . . . . . . 2 . Unidentified Prototypes 68 | . . 1 3 . 1 . . . . . 2 7 . . . 4 . 1 . . . . . 9 . 1 6 6 2 5 4 1 3 . 9 3 Corrupted Parts 2 | . . . . . . . . . . . . . . . . . . 1 . . . . . . . . . . . . . . . . 1 . System Corruption 12 | . . . . . . . . . . . . . . . . . . 10 . . . . . . . . . . . . . . . . 2 . Parts Lost 29 | . 4 . . 1 1 . 6 6 . . . . . . . 1 . . 1 . 1 . . . . 2 . . . . . . . 1 . 5 Power 6 | . 1 . . . . . 1 1 . . . . . . . . . . . . . . . . . . . . . . . . . . . 3 Propulsion 9 | . 2 . . . 1 . 3 3 . . . . . . . . . . . . . . . . . . . . . . . . . . . . Utility 10 | . . . . 1 . . 2 2 . . . . . . . 1 . . 1 . 1 . . . . 1 . . . . . . . 1 . . Weapon 4 | . 1 . . . . . . . . . . . . . . . . . . . . . . . . 1 . . . . . . . . . 2 Highest Loss Streak 3 | . 3 . . 1 1 . 2 2 . . . . . . . 1 . . 1 . 1 . . . . 1 . . . . . . . 1 . 2 To Critical Strikes 1 | . . . . . . . . . . . . . . . . . . . . . . . . . . . . . . . . . . . . 1 Average Slot Usage (%) 86 | . 97 99 99 99 93 100 98 99 100 100 98 87 82 86 85 84 86 86 87 87 87 87 87 87 88 88 89 81 89 74 75 77 73 78 75 77 Engine 2 | . 13 14 10 11 11 11 6 2 7 7 7 5 . . . . . . . . . . . . . . . . . . . . . . . . Core 1 | . . . . . . . 2 6 7 7 7 5 . . . . . . . . . . . . . . . . . . . . . . . . Reactor 7 | . . . . . . . . 4 . . . 1 7 6 6 6 6 6 5 5 5 5 5 5 5 8 10 9 8 8 9 13 13 15 15 13 Treads 12 | . 19 28 33 33 33 33 26 22 23 23 23 16 . . . . . . . . . . . . . . . . . 12 14 13 13 11 11 11 Leg 6 | . 8 . . . . . . . . . . 4 23 20 20 20 20 20 17 17 17 17 17 17 17 20 21 21 27 3 . . . . . . Device 17 | . 12 13 11 11 11 11 18 17 22 22 23 14 13 19 20 17 13 13 25 23 23 24 29 28 29 25 23 13 19 19 18 17 21 19 15 15 Storage 8 | . 14 14 11 11 11 11 9 7 7 7 7 8 14 12 13 13 13 13 12 11 11 11 11 11 11 10 10 9 9 9 9 7 4 4 4 4 Processor 5 | . . . . . . . 8 9 7 7 7 7 7 6 6 6 6 6 . . . . . . . . 1 9 4 4 8 8 8 8 10 15 Hackware 1 | . . . . . . . . . . . . . . . . . . . . . . 3 . . . . . . . . . . . 3 5 . Protection 6 | . . . 11 11 9 11 7 9 7 7 6 6 1 5 5 6 12 13 12 17 15 10 11 11 11 9 9 9 9 8 5 4 4 4 2 4 Energy Cannon 6 | . 18 9 4 10 . . 1 . 14 14 13 9 14 13 12 13 13 13 11 1 10 11 10 10 11 9 9 4 8 4 5 8 1 7 . 3 Ballistic Gun 2 | . 3 . . . 11 22 16 14 . . . 5 . . . . . . . 9 . . . . . . . 1 . 1 . . . . 3 6 Naked Turns 6 | . . . . . . . . . . . . . . . . . . . . . . . . . . . . . . . . . . . . 6 Heaviest Build 235 | 12 53 57 65 60 66 60 103 128 117 119 119 160 160 163 162 168 168 166 178 176 176 172 169 179 164 197 201 197 198 198 194 206 207 227 235 232 Greatest Support 265 | 20 40 40 60 60 60 60 60 63 60 60 60 90 90 90 90 90 84 88 108 88 88 108 108 108 88 118 120 120 180 240 265 265 265 265 265 260 Greatest Overweight (x) 6 | . 1 1 1 . 2 1 1 2 1 1 1 2 1 1 1 5 1 1 2 1 1 2 1 2 1 2 2 1 1 6 . . . . 1 . Average Overweight (x) . | . . 1 . . . . . 1 1 1 1 1 1 1 1 1 1 1 1 1 1 1 1 1 1 1 1 1 1 . . . . . . . Largest Inventory Capacity 29 | . 20 20 20 20 20 20 25 25 25 25 25 25 25 25 25 25 25 25 25 25 25 25 25 25 25 25 25 25 25 25 29 29 29 29 29 29 Average Capacity 25 | . 13 20 20 20 20 20 24 25 25 25 25 21 25 25 25 25 25 25 25 25 25 25 25 25 25 25 25 25 25 25 26 29 29 29 29 28 Most Carried 29 | . 20 20 20 20 20 20 25 25 25 25 25 25 25 25 25 25 25 25 25 25 25 25 25 25 25 25 25 25 25 25 29 29 29 29 29 29 Average Carried 23 | . 13 19 19 19 18 19 23 24 24 25 24 18 24 24 24 24 24 24 24 23 24 24 25 24 25 24 24 20 24 24 26 28 28 28 25 27 Final Capacity 29 | 8 20 20 20 20 20 20 25 25 25 25 25 25 25 25 25 25 25 25 25 25 25 25 25 25 25 25 25 25 25 25 29 29 29 29 29 9 Final Carried 29 | 6 20 20 20 20 20 20 25 25 25 25 25 25 25 25 25 25 25 24 25 25 25 25 25 25 25 25 25 25 25 25 29 29 29 29 29 9 Class Distribution -------------------- 24% | Scavenger-Mutant 21% | Generator-Mutant 13% | Mutant 10% | Alien-Mutant 9% | Golem 4% | Generator-Golem 4% | Commander-Golem 4% | Generator-Gunner 3% | Alien-Assassin Dominant Class ---------------- Mutant | -10/Materials Mutant | -10/Mines Scavenger-Mutant | -9/Materials Scavenger-Mutant | -9/Mines Mutant | -9/Exiles Mutant | -8/Mines Scavenger-Mutant | -8/Materials Scavenger-Mutant | -7/Factory Scavenger-Mutant | -7/Lower Caves Scavenger-Mutant | -7/Lower Caves Scavenger-Mutant | -7/Zion Scavenger-Mutant | -7/Deep Caves Golem | -6/Proximity Caves Mutant | -6/Factory Commander-Golem | -6/Extension Commander-Mutant | -6/Cetus Commander-Golem | -6/Archives Scavenger-Golem | -6/Hub_04(d) Golem | -5/Factory Scavenger-Golem | -5/Waste Golem | -5/Factory Golem | -5/Upper Caves Mutant | -5/Upper Caves Commander-Golem | -5/Warlord Mutant | -4/Proximity Caves Generator-Golem | -4/Factory Generator-Golem | -4/Armory Generator-Mutant | -4/Lab Generator-Golem | -3/Research Generator-Mutant | -3/Quarantine Generator-Mutant | -3/Section 7 Alien-Assassin | -2/Research Alien-Assassin | -2/Testing Generator-Mutant | -1/Access Alien-Mutant | -1/Command Generator-Mutant | -1/Access_0 Resources | -11 -10 -10 -9 -9 -9 -8 -8 -7 -7 -7 -7 -7 -6 -6 -6 -6 -6 -6 -5 -5 -5 -5 -5 -5 -4 -4 -4 -4 -3 -3 -3 -2 -2 -1 -1 -1 ----------- Run | Scr Mat Min Mat Min Exi Min Mat Fac Low Low Zio Dee Pro Fac Ext Cet Arc Hub Fac Was Fac Upp Upp War Pro Fac Arm Lab Res Qua Sec Res Tes Acc Com Ac0 Matter Collected 19081 | 200 207 124 613 268 914 243 997 1765 268 212 92 1312 100 114 66 294 56 70 201 408 279 229 212 180 20 666 473 283 142 1118 272 115 455 199 2489 3425 Remotely . | . . . . . . . . . . . . . . . . . . . . . . . . . . . . . . . . . . . . . Salvage Created 42725 | . 1099 74 1362 445 616 416 1580 2853 235 295 . 3808 1036 423 1517 274 247 994 1064 1791 1360 454 866 900 355 1306 1821 . 325 1177 1116 313 2350 3010 3755 3488 Parts 1966 | . 52 8 87 18 85 24 91 120 13 6 . 35 38 28 70 20 12 56 58 42 60 16 40 24 15 67 83 . 18 109 59 12 131 128 158 183 Haulers Intercepted 16 | . 2 . 5 . . . 4 1 . . . . . 1 . . . . . . 1 . . . . . . . . . . 1 1 . . . Recyclers Shooed 20 | . 5 . 2 2 . 2 4 1 . . . . . . 1 . . . . . 1 . . . . . . . . . 1 . . . 1 . Parts Field Recycled . | . . . . . . . . . . . . . . . . . . . . . . . . . . . . . . . . . . . . . Retrieved Matter . | . . . . . . . . . . . . . . . . . . . . . . . . . . . . . . . . . . . . . Parts Self-Destructed 134 | . . . . . . . . . 12 3 2 . 38 . . . . . . . . 16 40 . 23 . . . . . . . . . . . Prevented 7 | . . . . . . . . . 3 4 . . . . . . . . . . . . . . . . . . . . . . . . . . Kills | -11 -10 -10 -9 -9 -9 -8 -8 -7 -7 -7 -7 -7 -6 -6 -6 -6 -6 -6 -5 -5 -5 -5 -5 -5 -4 -4 -4 -4 -3 -3 -3 -2 -2 -1 -1 -1 ------- Run | Scr Mat Min Mat Min Exi Min Mat Fac Low Low Zio Dee Pro Fac Ext Cet Arc Hub Fac Was Fac Upp Upp War Pro Fac Arm Lab Res Qua Sec Res Tes Acc Com Ac0 Combat Hostiles Destroyed 566 | . 14 4 28 14 5 10 23 43 7 6 . 33 17 5 26 2 3 14 19 6 25 7 18 21 5 19 28 . 4 14 16 3 28 34 29 36 Melee 10 | . . . . . . . . . . . . . . . . . . . . . . . . . . . . . . . . . 6 . 4 . Guns 148 | . 6 . 7 . 2 10 15 29 . . . 30 . . . . . . . 6 . . . . . . 2 . 1 9 . . 1 . . 30 Cannons 302 | . 7 2 19 11 . . 3 3 4 1 . . 17 5 24 2 3 14 17 . 20 7 18 9 5 18 23 . 3 3 10 2 12 22 16 2 AOE 59 | . . 2 2 3 3 . 5 11 3 3 . . . . . . . . 2 . 5 . . 11 . 1 3 . . . . 1 1 1 2 . Classes Destroyed 32 | . 6 2 3 3 2 . 1 2 . . . 3 . . 1 . . . . 1 . . . 3 . . 1 . . 1 1 . . 1 1 . Worker 19 | . . . 3 2 . . 3 2 . . . . . . . . . 3 . . 1 . . . . . . . . . . . . 2 3 . Builder 7 | . 1 . . . . . 1 . . . . . . 1 . . . . . . . . . . . . . . . . . . 2 2 . . Tunneler 3 | . . . . 1 . 2 . . . . . . . . . . . . . . . . . . . . . . . . . . . . . . Hauler 16 | . 2 . 5 . . . 4 1 . . . . . 1 . . . . . . 1 . . . . . . . . . . 1 1 . . . Recycler 31 | . 4 . 1 2 . . 2 10 . . . . . . . . . 1 . . . . . . . . . . . . . . 1 1 9 . Mechanic 3 | . . . 1 . . . . 1 . . . . . . . . . . . . . . . . . . . . . . . . . . 1 . Operator 11 | . 1 . 2 . . . . 1 . . . . . 1 . . . . . . . . . . . . . . . . . 1 1 . 4 . Turret 1 | . . . . . 1 . . . . . . . . . . . . . . . . . . . . . . . . . . . . . . . Watcher 30 | . 2 . 2 . . . 5 1 . . . . . 1 . 1 . 1 2 . 2 . . . . 1 1 . . . 5 . 1 4 1 . Swarmer 49 | . . 3 3 . . 4 . . 3 1 . . . . 4 . . 1 . . 8 . 7 . . . . . . . 8 . 3 4 . . Saboteur 1 | . . . . . . . . . . . . . . . . . . . . . . . . 1 . . . . . . . . . . . . Grunt 205 | . 14 . 16 4 . 6 16 31 2 3 . . 11 1 10 2 . 10 6 . 12 5 7 13 2 5 5 . . . . 1 5 13 5 . Brawler 12 | . . . 1 1 . . . 2 . . . . 1 . . . . . . . 1 1 . 3 . . 2 . . . . . . . . . Duelist 10 | . . . . . . . . 1 1 1 . . 3 . . . . . 1 . . . 1 1 . . . . . . . . . 1 . . Protector 2 | . . . . . . . . . . . . . . . . . . . . . . . . 1 . . 1 . . . . . . . . . Sentry 55 | . . 1 8 . . . 4 4 . 1 . . . . 7 . 3 1 3 . 3 1 2 . . 5 4 . 2 . 1 . 3 1 1 . Demolisher 4 | . . . . 1 . . . . . . . . . . . . . . . . . . . . . . 3 . . . . . . . . . Specialist 2 | . . . . . . . . . . . . . . . . . . . . . . . . . . . . . . . . . . 2 . . Hunter 33 | . . . . . . . 3 . 1 . . . 2 . 3 . . . 3 . . . 1 . . 3 4 . 1 . . . 3 6 3 . Programmer 74 | . . . . . . . . 5 . . . . . 4 . . . 1 6 . 1 . . . 2 6 9 . 1 1 4 2 14 7 11 . Heavy 1 | . . . . . . . . . . . . . . . . . . . . . . . . . . . 1 . . . . . . . . . Behemoth 4 | . . . . . . . . . . . . . . . 2 . . . . . . . . . 1 . . . . . . . . . 1 . Compactor 6 | . . . . . . . . . . . . . . . . . . . . 6 . . . . . . . . . . . . . . . . Quarantine Guard 12 | . . . . . . . . . . . . . . . . . . . . . . . . . . . . . . 12 . . . . . . S7 Guard 1 | . . . . . . . . . . . . . . . . . . . . . . . . . . . . . . . 1 . . . . . M Guard 2 | . . . . . . . . . . . . . . . . . . . . . . . . . . . . . . . . . . . 2 . Enhanced Grunt 23 | . . . . . . . . . . . . . . . . . . . . . . . . . . . . . . . . . . . . 23 Enhanced Sentry 1 | . . . . . . . . . . . . . . . . . . . . . . . . . . . . . . . . . . . . 1 Enhanced Hunter 8 | . . . . . . . . . . . . . . . . . . . . . . . . . . . . . . . . . . . . 8 Lightning 1 | . . . . . . . . . . . . . . . . . . 1 . . . . . . . . . . . . . . . . . . Combat Programmer 2 | . . . . . . . . . . . . . . . . . . . . . . . . . . . . . . . . . . . 2 . Striker 3 | . . . . . . . . . . . . . . . . . . . . . . . . 2 . . . . . . . . . . 1 . Alpha 7 3 | . . . . . . . . . . . . . . . . . . . . . . . . . . . . . . . 2 . . . 1 . Fortress 1 | . . . . . . . . . . . . . . . . . . . . . . . . . . . . . . 1 . . . . . . Protovariant L 1 | . . . . . . . . . . . . . . . . . . . . . . . . . . . . . . . . . 1 . . . Zionite 7 | . . . . . 7 . . . . . . . . . . . . . . . . . . . . . . . . . . . . . . . Z-Light 1 | . . . . . . . . . . . . 1 . . . . . . . . . . . . . . . . . . . . . . . . Decomposer 2 | . . . . . . . . . . 2 . . . . . . . . . . . . . . . . . . . . . . . . . . Assembler 1 | . . . . . . . . . . . . 1 . . . . . . . . . . . . . . . . . . . . . . . . Assembled 12 | . . . . 8 4 . . . . . . . . . . . . . . . . . . . . . . . . . . . . . . . Golem 32 | . . . . . . . . . . . . 32 . . . . . . . . . . . . . . . . . . . . . . . . Wasp 1 | . . . . . . . . . . . . 1 . . . . . . . . . . . . . . . . . . . . . . . . Thug 1 | . . . . . . . . . . . . . . . . . . . . . . . . 1 . . . . . . . . . . . . Savage 1 | . . . . . . . . . . . . . . . . . . . . . . . . 1 . . . . . . . . . . . . Butcher 1 | . . . . . . . . . . . . . . . . 1 . . . . . . . . . . . . . . . . . . . . Guerrilla 1 | . . . . . . . . . . . . . . . . . . . . . . . . . . . . . . . . . . . 1 . Wizard 1 | . . . . . . . . . . . . . . . . . . . . . . . . . . . . . . . . . . . 1 . Mutant 1 | . . . . . . . . . . . . . . . . . . . . . . . . . . . . . . . . . . . 1 . Best Kill Streak 14 | . 3 3 4 5 5 6 6 6 3 3 . 13 4 2 2 2 2 6 4 4 6 3 4 14 2 8 10 . 1 2 6 2 6 11 8 8 Combat Bots Only 14 | . 2 3 3 5 4 5 5 6 3 3 . 13 4 2 2 2 2 6 4 4 5 3 4 14 2 8 10 . 1 2 6 2 4 7 8 8 Max Kills in Single Turn 7 | . 2 2 2 1 1 2 3 2 3 1 . 2 2 2 1 1 1 2 2 1 2 1 2 7 1 2 2 . 1 1 1 1 2 2 2 3 Gunslinging 2 | . . . . . . . . . . . . . . . . . . . . . . . . . . . . . . . . . . . . 2 Exploded 5 | . . 2 1 1 1 . 3 2 3 1 . . . . . . . . 1 . 2 . . 5 . 1 2 . . . . 1 1 1 2 . Melee 1 | . . . . . . . . . . . . . . . . . . . . . . . . . . . . . . . . . 1 . 1 . Uniques/NPCs Destroyed 13 | . . . . . 4 . . . . . . 1 . . . 1 . . . . . . . . . . . . . . . . . . 2 5 8R-AWN (-9/Exiles) EX-DEC (-9/Exiles) EX-HEX (-9/Exiles) EX-BIN (-9/Exiles) Z-Imprinter (-7/Deep Caves) A7 (-6/Cetus) Warlord (-1/Command) MAIN.C (-1/Command) A8 (-1/Access_0) A6 (-1/Access_0) A5 (-1/Access_0) A4 (-1/Access_0) Architect (-1/Access_0) Combat | -11 -10 -10 -9 -9 -9 -8 -8 -7 -7 -7 -7 -7 -6 -6 -6 -6 -6 -6 -5 -5 -5 -5 -5 -5 -4 -4 -4 -4 -3 -3 -3 -2 -2 -1 -1 -1 -------- Run | Scr Mat Min Mat Min Exi Min Mat Fac Low Low Zio Dee Pro Fac Ext Cet Arc Hub Fac Was Fac Upp Upp War Pro Fac Arm Lab Res Qua Sec Res Tes Acc Com Ac0 Damage Taken 33274 | . 595 149 537 447 330 480 1266 2277 250 272 . 494 944 384 848 323 72 1088 1077 28 516 208 386 562 172 1114 984 . 112 920 1098 168 1117 1701 1805 10550 Core 3248 | . 132 21 61 107 22 83 179 190 47 16 . . 59 145 27 24 50 117 80 . 46 31 40 149 . 147 51 . 18 17 . . 39 52 84 1214 Absorbed by Shields 16108 | . . . . . . . . . . . . . . . . 125 . . . . . . . 12 165 456 743 . 119 865 384 . 642 1587 1109 9901 Reduced by Siege Mode 363 | . . . . . . . . . . . . . . . . . . . . . . . . . . . . . . 51 73 . 50 79 . 110 Redirected to Shielding 190 | . . . . . . . . 81 . 51 . 33 . . . . . . . . . . . . . . . . . . . . . . . 25 Regen/Repaired (Parts) 14410 | . 70 . 50 . . . . 30 . . . . . . . 23 58 162 385 49 511 33 37 12 58 161 128 2 16 108 1651 85 2022 857 3445 4457 Core Remaining (%) 62 | 100 . 38 . . . 31 67 . . . . . 55 . . . . 57 . . . . . . 65 . . 100 . . 83 . 80 . . 9 Volleys Fired 2433 | . 72 5 82 34 97 32 109 140 16 13 . 107 41 32 60 23 5 50 74 29 67 29 37 72 25 73 100 166 38 50 69 19 105 127 130 305 Largest 4 | . 2 2 2 2 2 2 2 2 2 2 . 2 2 2 2 2 2 2 2 2 2 2 2 2 2 2 2 1 2 2 1 1 2 2 2 4 Hottest 214 | . 120 114 114 107 60 46 126 126 60 126 . 126 50 50 50 50 50 50 50 60 50 50 50 100 50 50 125 100 55 88 100 120 165 214 214 180 Shots Fired 3884 | . 130 10 148 65 144 64 201 268 31 25 . 198 82 51 112 42 10 101 122 58 118 63 72 98 50 124 163 166 51 58 69 19 104 129 143 595 Gun 1401 | . 57 3 52 . 112 64 178 244 . . . 136 . . . . . . . 58 . . . . . . 10 7 7 32 . . 3 . 45 393 Cannon 2397 | . 73 7 91 59 . . 13 12 30 22 . 62 82 51 112 42 10 101 120 . 113 63 72 95 50 124 150 159 44 26 69 19 101 128 95 202 Launcher 50 | . . . 5 6 6 . 10 12 1 3 . . . . . . . . . . 5 . . . . . . . . . . . . . 2 . Special 36 | . . . . . 26 . . . . . . . . . . . . . 2 . . . . 3 . . 3 . . . . . . 1 1 . Kinetic 1416 | . 25 5 67 30 112 64 178 244 . . . 136 . . . . . . . 58 . . . . . . 10 7 7 32 . . 3 . 45 393 Thermal 2089 | . 70 5 76 29 26 . . 2 30 1 . 2 82 51 112 42 10 101 120 . 113 63 72 94 50 124 147 158 44 23 36 15 67 55 70 199 Explosive 59 | . . . 5 6 6 . 10 12 1 3 . . . . . . . . 2 . 5 . . 3 . . 3 . . . . . . 1 2 . Electromagnetic 307 | . 35 . . . . . 13 10 . 21 . 60 . . . . . . . . . . . . . . . . . 3 33 4 34 73 18 3 Entropic 12 | . . . . . . . . . . . . . . . . . . . . . . . . 1 . . 3 1 . . . . . . 7 . Robot Hit Streak 52 | . 15 8 24 7 15 8 18 18 8 20 . 23 13 6 15 25 32 12 11 16 20 16 17 18 20 21 25 . 11 48 52 14 22 22 36 52 Robot Miss Streak 8 | . 3 1 7 4 4 3 5 6 8 1 . 5 2 1 2 1 . 3 2 2 5 2 3 2 3 2 2 . 1 . 3 2 3 3 2 4 Penetration Max 1 | . . . . . 1 . 1 1 . . . 1 . . . . . . . . . . . . . . 1 . . 1 . . . . . 1 Secondary Targets 22 | . 1 . . . . 2 1 4 . . . 1 . . . . . . . . . . . . . . . . . . . . . . . 13 Max Gunslinging Chain 2 | . 1 . . . . 1 1 1 . . . 1 . . . . . . . . . . . . . . . . . . . . . . . 2 Shots Hit Robots 2492 | . 87 6 81 31 87 43 128 199 15 20 . 120 46 24 81 37 7 62 64 43 63 24 42 45 24 58 97 . 24 51 51 9 71 95 126 531 Core Hits 1630 | . 38 6 45 22 55 20 79 174 12 13 . 85 24 9 35 14 5 29 31 13 42 12 25 59 8 29 46 . 11 24 26 7 35 54 70 473 Critical Kills 83 | . . . . . 2 . 1 2 . . . 33 . . . . . . . 6 . . . . . . 2 . 1 9 2 . 2 . 1 22 Critical Parts Destroyed 58 | . . . . . 7 . 1 1 . . . 13 . . . . . . . 3 . . . . . . 1 . . 7 . . . . 1 24 Critical Strikes 194 | . . 1 5 1 10 . 2 3 . . . 47 . . . . . . . 22 . . . . . . 6 . 1 16 2 . 3 3 2 70 Burn 3 | . . 1 2 . . . . . . . . . . . . . . . . . . . . . . . . . . . . . . . . . Meltdown 7 | . . . . . . . . . . . . . . . . . . . . . . . . . . . . . . . 2 . 2 . 1 2 Destroy 173 | . . . . . 10 . 2 3 . . . 47 . . . . . . . 22 . . . . . . 3 . 1 16 . . . . 1 68 Blast 4 | . . . 3 1 . . . . . . . . . . . . . . . . . . . . . . . . . . . . . . . . Corrupt 3 | . . . . . . . . . . . . . . . . . . . . . . . . . . . . . . . . . . 3 . . Sever 2 | . . . . . . . . . . . . . . . . . . . . . . . . . . . 1 . . . . . 1 . . . Sunder 2 | . . . . . . . . . . . . . . . . . . . . . . . . . . . 2 . . . . . . . . . Melee Attacks 150 | . 2 . . . 4 . . . . . 7 1 . . . . . . . . . . . . . . . . . 6 13 3 35 4 68 7 Kinetic 57 | . . . . . . . . . . . . . . . . . . . . . . . . . . . . . . 6 13 . 8 . 25 5 Impact 7 | . . . . . . . . . . . 7 . . . . . . . . . . . . . . . . . . . . . . . . . Slashing 73 | . . . . . . . . . . . . . . . . . . . . . . . . . . . . . . . . 3 27 4 37 2 Piercing . | . . . . . . . . . . . . . . . . . . . . . . . . . . . . . . . . . . . . . Sneak Attacks 37 | . 2 . . . 4 . . . . . . 1 . . . . . . . . . . . . . . . . . . 1 2 2 2 23 . Combat Hostiles 2 | . . . . . . . . . . . . . . . . . . . . . . . . . . . . . . . 1 . . . 1 . Follow-up Attacks 6 | . . . . . . . . . . . . . . . . . . . . . . . . . . . . . . . . . 2 . 2 2 Damage Inflicted 106318 | . 1536 375 2342 987 1443 722 3107 4976 546 858 . 2667 2158 1180 3884 1805 346 2908 3556 756 3417 1116 1819 4486 1308 3123 5159 . 964 1444 2339 893 4119 5284 9461 25234 Guns 24251 | . 487 42 630 . 920 651 1886 3307 . . . 1644 . . . . . . . 756 . . . . . . 170 . 48 558 . . 92 . 358 12702 Cannons 62546 | . 890 79 1085 674 . . 240 221 405 413 . 754 2158 1180 3815 1683 346 2879 2866 . 2962 1116 1794 2372 1304 2895 4290 . 916 674 1807 322 2437 4197 3630 12142 Explosions 9375 | . . 227 445 195 218 . 905 1324 141 398 . 261 . . . . . . 609 . 370 . . 2030 . 228 599 . . . . 203 331 588 303 . Melee 7874 | . . . . . . . . . . . . . . . . . . . . . . . . . . . . . . 212 525 368 1259 461 4659 390 Ramming 1809 | . 159 27 182 118 138 71 76 124 . 47 . 8 . . 69 122 . 29 6 . 85 . 25 . 4 . . . . . 7 . . 1 511 . Kinetic 27099 | . 239 60 630 323 920 651 1886 3307 . . . 1644 . . . . . . . 756 . . . . . . 170 . 48 770 525 . 402 . 1803 12965 Thermal 56073 | . 821 288 1085 351 167 . . 28 405 178 . 261 2158 1180 3815 1683 346 2879 2866 . 2962 1116 1794 2372 1304 3123 4049 . 916 581 1193 161 1662 1806 2481 12042 Explosive 7862 | . . . 445 195 218 . 905 1324 141 220 . . . . . . . . 609 . 370 . . 2030 . . 599 . . . . 203 . 300 303 . Electromagnetic 7345 | . 317 . . . . . 240 193 . 413 . 754 . . . . . . . . . . . . . . . . . 93 614 161 1106 2679 675 100 Impact . | . . . . . . . . . . . . . . . . . . . . . . . . . . . . . . . . . . . . . Slashing 5415 | . . . . . . . . . . . . . . . . . . . 75 . . . . 84 . . 100 . . . . 368 949 498 3214 127 Piercing . | . . . . . . . . . . . . . . . . . . . . . . . . . . . . . . . . . . . . . Entropic 715 | . . . . . . . . . . . . . . . . . . . . . . . . . . . 241 . . . . . . . 474 . Highest Corruption 15 | . . . 4 4 4 . 2 5 5 5 5 . . 1 . . . 15 1 6 6 6 6 6 . 1 2 2 . 1 . 1 2 4 8 5 Average Corruption 4 | . . . 4 4 3 . 1 2 5 5 5 . . 1 . . . 1 1 4 6 6 6 6 . 1 1 2 . 1 . 1 1 2 6 3 Corruption Purged 35 | . . . . . 4 . . 2 . . . . . 1 . . . . 2 3 . . . . . 1 . . . 1 . . . . 15 6 Corruption Blocked 48 | . . . . . . . . . . . . . . . . . . . . . . . . 24 . . . . . . . 1 . . 23 . Effects 870 | . . . 68 23 46 . 16 38 59 62 4 . . . . . . 6 . 3 32 67 62 . . 3 11 28 . 9 . 2 29 16 260 26 Message Errors 205 | . . . 14 3 14 . 3 7 10 16 . . . . . . . 1 . 1 8 14 8 . . . 2 8 . 3 . . 8 1 77 7 Matter Fused 207 | . . . 16 6 12 . 8 9 14 17 1 . . . . . . 1 . . 3 20 19 . . . 3 5 . 1 . . 6 5 55 6 Heat Flow Errors 107 | . . . 10 3 3 . 1 3 8 8 1 . . . . . . . . . 3 6 5 . . 1 2 2 . 1 . 1 5 3 39 2 Energy Discharges 111 | . . . 9 1 8 . . 3 9 10 1 . . . . . . 2 . 2 6 5 12 . . 1 2 5 . . . 1 1 4 27 2 Parts Rejected 10 | . . . 1 . . . . 1 1 . . . . . . . . . . . 1 . . . . . . . . . . . . 1 5 . Data Loss (minor) 129 | . . . 7 5 4 . 2 11 11 4 1 . . . . . . . . . 7 12 8 . . 1 1 4 . 3 . . 6 1 38 3 Data Loss (major) 39 | . . . 3 2 3 . 1 2 2 2 . . . . . . . . . . 1 3 3 . . . 1 3 . 1 . . 1 1 9 1 Misfires 22 | . . . 2 3 1 . . . 1 4 . . . . . . . 1 . . 1 5 1 . . . . . . . . . . . 2 1 Alerts 27 | . . . 3 . . . . 2 2 1 . . . . . . . 1 . . 1 2 5 . . . . 1 . . . . . . 7 2 Weapon Failures 13 | . . . 3 . 1 . 1 . 1 . . . . . . . . . . . 1 . 1 . . . . . . . . . 2 . 1 2 Overload Shots . | . . . . . . . . . . . . . . . . . . . . . . . . . . . . . . . . . . . . . Overflow Damage 3808 | . 35 33 7 30 29 . 19 2 . 24 . . 91 56 117 15 . 147 173 . 185 . 47 35 17 97 348 . 47 56 92 131 330 309 1123 213 Projectiles 2075 | . 35 . 3 30 29 . . . . . . . 91 56 117 15 . 147 173 . 112 . 26 35 17 97 348 . 47 56 66 21 77 160 104 213 Explosions 163 | . . 33 . . . . 19 . . 24 . . . . . . . . . . 35 . . . . . . . . . . . 43 8 1 . Melee 1570 | . . . 4 . . . . 2 . . . . . . . . . . . . 38 . 21 . . . . . . . 26 110 210 141 1018 . Knockbacks 33 | . 2 . 14 5 2 1 . 1 . . . . . . 1 2 . . . . 2 . 1 . . . . . . . . . . . 2 . Impact 16 | . 1 . 2 1 2 1 . 1 . . . . . . 1 2 . . . . 2 . 1 . . . . . . . . . . . 2 . Kinetic 14 | . 1 . 9 4 . . . . . . . . . . . . . . . . . . . . . . . . . . . . . . . . Secondary 3 | . . . 3 . . . . . . . . . . . . . . . . . . . . . . . . . . . . . . . . . Self-Inflicted Damage 356 | . . . . . 4 . 114 58 . 46 . . . . . . . 72 . . . . . . . . . . . 62 . . . . . . Shots 7 | . . . . . 1 . 1 2 . 1 . . . . . . . 1 . . . . . . . . . . . 1 . . . . . . Rammed 192 | . 8 3 17 10 46 3 8 10 . 2 . 2 . . . . . . . . . . . . . . . . . . 1 . . 1 81 . Targets Rammed 278 | . 51 3 21 11 49 4 9 10 . 3 . 2 . . 6 18 . 2 1 . 3 . 1 . 1 . . . . . 1 . . 1 81 . Kicked 75 | . 43 . . . . . . . . . . . . . 6 18 . 2 1 . 3 . 1 . 1 . . . . . . . . . . . Crushed 11 | . . . 4 1 3 1 1 . . 1 . . . . . . . . . . . . . . . . . . . . . . . . . . Highest Temperature 337 | . 138 51 234 137 200 208 218 227 284 279 201 258 29 13 42 7 18 31 18 55 221 213 254 332 . 118 200 175 . 273 243 210 92 164 337 180 Average Temperature 62 | . 36 15 50 25 69 69 59 117 110 103 107 89 15 2 5 2 8 6 10 20 46 72 89 149 . 28 60 68 . 74 56 63 66 78 112 46 Received Heat Transfer 4631 | . 345 45 279 111 24 207 414 822 45 102 . 95 252 21 216 25 . 243 150 . 207 87 63 36 30 163 105 . 26 33 92 9 110 198 22 54 Effects 4 | . . . . . 1 . . . 1 . . . . . . . . . . . . . . . . . . . . . . . . . 2 . Energy Bleed 3 | . . . . . . . . . 1 . . . . . . . . . . . . . . . . . . . . . . . . . 2 . Interference 1 | . . . . . 1 . . . . . . . . . . . . . . . . . . . . . . . . . . . . . . . Siege Activations 26 | . . . . . . . . . . . . . . . . . . . . . . . . . . . . . . 5 5 . 4 8 . 4 Total Turns 486 | . . . . . . . . . . . . . . . . . . . . . . . . . . . . . . 94 77 . 98 151 . 66 Longest Duration 60 | . . . . . . . . . . . . . . . . . . . . . . . . . . . . . . 60 23 . 28 35 . 33 Robots Corrupted 29 | . 1 . . . . . . . . 2 . 3 . . . . . . . . . . . . . . . . . 1 1 . 6 12 2 1 Combat Hostiles 27 | . 1 . . . . . . . . 2 . 3 . . . . . . . . . . . . . . . . . 1 1 . 5 11 2 1 Parts Fried 85 | . 2 . . . . . 2 3 . 4 . 5 . . . 2 . . . . . . . . . . . . . 1 7 2 8 32 12 5 Impact Corruptions 8 | . . . 1 . . . . 1 . . . . . . . . . . . . 2 . 2 . 1 . . . . . . . . . 1 . Robots Melted 10 | . . . . . . . . . . . . . . . 2 . . . . . . . . 1 . . . . . . 2 . 2 . 1 2 Combat Hostiles 10 | . . . . . . . . . . . . . . . 2 . . . . . . . . 1 . . . . . . 2 . 2 . 1 2 Parts Melted 81 | . 2 3 2 . 13 . . . 3 . . . 1 . 6 . 1 1 5 . 3 1 2 3 1 1 3 . . 2 5 . 3 4 7 9 Heat Transferred 32131 | . 1739 485 2072 629 582 . . 37 555 200 . 200 1225 625 2075 898 175 1509 1575 . 1600 625 1025 1273 649 1688 2136 . 525 325 1073 111 1162 1384 1446 2528 Parts Sabotaged 2 | . . . . . . . . . . . . . . . . . . . 2 . . . . . . . . . . . . . . . . . Parts Stolen . | . . . . . . . . . . . . . . . . . . . . . . . . . . . . . . . . . . . . . Parts Stripped . | . . . . . . . . . . . . . . . . . . . . . . . . . . . . . . . . . . . . . Power Chain Reactions 7 | . . . . . . . . . . 2 . 3 . . . . . . . . . . . . . . . . . . . . 1 1 . . Missiles Intercepted 11 | . . . . . . . . . . . . . . . . . . . . . . . . . . . . . . . . . . . 11 . Alert | -11 -10 -10 -9 -9 -9 -8 -8 -7 -7 -7 -7 -7 -6 -6 -6 -6 -6 -6 -5 -5 -5 -5 -5 -5 -4 -4 -4 -4 -3 -3 -3 -2 -2 -1 -1 -1 ------- Run | Scr Mat Min Mat Min Exi Min Mat Fac Low Low Zio Dee Pro Fac Ext Cet Arc Hub Fac Was Fac Upp Upp War Pro Fac Arm Lab Res Qua Sec Res Tes Acc Com Ac0 Peak Influence 1002 | . 248 177 312 286 . 225 638 983 . . . . . 245 749 765 434 1002 909 320 573 . . . . 510 666 . 171 261 436 192 309 624 679 . Initial 490 | . . 5 11 121 . . . 252 . . . . . 14 28 419 226 29 490 318 224 . . . . . 56 . . . 81 37 9 156 336 . Average 221 | . 101 33 120 103 . 45 341 590 . . . . . 84 269 532 271 630 616 319 382 . . . . 181 359 . 21 122 148 85 127 307 240 . Maximum Alert Level 3 | . 1 . 1 1 . 1 2 3 . . . . . 1 3 3 2 3 3 1 2 . . . . 2 2 . . 1 2 . 1 2 3 . Low Security (%) 52 | . 82 100 75 93 . 96 29 4 . . . . . 90 42 . 21 9 . . . . . . . 53 36 . 100 95 71 100 77 37 28 . Level 1 19 | . 17 . 24 6 . 3 28 23 . . . . . 9 37 43 43 7 . 100 52 . . . . 42 9 . . 4 23 . 22 33 20 . Level 2 17 | . . . . . . . 42 38 . . . . . . 13 26 34 34 77 . 47 . . . . 4 53 . . . 5 . . 29 23 . Level 3 11 | . . . . . . . . 33 . . . . . . 6 30 . 47 22 . . . . . . . . . . . . . . . 26 . Level 4 . | . . . . . . . . . . . . . . . . . . . . . . . . . . . . . . . . . . . . . Level 5 . | . . . . . . . . . . . . . . . . . . . . . . . . . . . . . . . . . . . . . High Security . | . . . . . . . . . . . . . . . . . . . . . . . . . . . . . . . . . . . . . Max Security . | . . . . . . . . . . . . . . . . . . . . . . . . . . . . . . . . . . . . . Squads Dispatched 122 | . 4 . 3 . . . 6 12 . . . . . 5 2 . . 7 5 . 5 . . . . 3 5 . 6 . 4 4 10 7 34 . Investigation 18 | . 3 . 2 . . . 2 1 . . . . . 1 1 . . 4 . . . . . . . . . . 1 . . 1 . 2 . . Extermination 58 | . . . . . . . . 4 . . . . . 3 . . . 1 3 . 1 . . . . 3 4 . . . 4 . 5 2 28 . Reinforcement 33 | . 1 . 1 . . . 4 4 . . . . . . 1 . . . 1 . 3 . . . . . 1 . 5 . . 3 2 2 5 . Assault 8 | . . . . . . . . 2 . . . . . 1 . . . 1 1 . 1 . . . . . . . . . . . . 1 1 . Garrison 5 | . . . . . . . . 1 . . . . . . . . . 1 . . . . . . . . . . . . . . 3 . . . Intercept . | . . . . . . . . . . . . . . . . . . . . . . . . . . . . . . . . . . . . . Searches Triggered . | . . . . . . . . . . . . . . . . . . . . . . . . . . . . . . . . . . . . . Construction Impeded 3 | . . . . . . . 1 1 . . . . . . . . . . . . 1 . . . . . . . . . . . . . . . Haulers Reinforced 3 | . . . . . . . . . . . . . . . . . . . . . 1 . . . . . . . 1 . . 1 . . . . Active Scanning Responses . | . . . . . . . . . . . . . . . . . . . . . . . . . . . . . . . . . . . . . Cargo Convoy Interrupts . | . . . . . . . . . . . . . . . . . . . . . . . . . . . . . . . . . . . . . Stealth | -11 -10 -10 -9 -9 -9 -8 -8 -7 -7 -7 -7 -7 -6 -6 -6 -6 -6 -6 -5 -5 -5 -5 -5 -5 -4 -4 -4 -4 -3 -3 -3 -2 -2 -1 -1 -1 --------- Run | Scr Mat Min Mat Min Exi Min Mat Fac Low Low Zio Dee Pro Fac Ext Cet Arc Hub Fac Was Fac Upp Upp War Pro Fac Arm Lab Res Qua Sec Res Tes Acc Com Ac0 Distress Signals 44 | . . . 4 . . . 1 1 . . . . . . 1 2 . 3 1 . 1 . . 1 . . 1 . 3 . 1 4 1 2 17 . Communications Jammed 158 | . . . . . . . . 22 . . . . . . 12 . . . . . . . . 58 . 6 4 . . . 7 . 17 1 31 . Distress Signals 148 | . . . . . . . . 22 . . . . . . 12 . . . . . . . . 58 . 6 . . . . 7 . 17 1 25 . Times Spotted 1019 | . 31 4 47 13 39 16 35 61 6 7 . 64 14 10 34 15 3 30 34 6 35 7 16 79 8 22 45 . 19 14 28 6 33 49 85 104 Peak Tracking Total 19 | . 5 2 5 3 11 7 5 5 3 3 . 14 3 3 3 5 3 5 5 2 5 3 4 19 2 9 8 . 4 2 7 2 4 7 9 8 Tactical Retreats 46 | . 3 . . . 7 4 1 2 2 1 . 8 . . 2 . . 1 1 . 1 . . 2 . 1 2 . . . 1 . 3 3 1 . Traps | -11 -10 -10 -9 -9 -9 -8 -8 -7 -7 -7 -7 -7 -6 -6 -6 -6 -6 -6 -5 -5 -5 -5 -5 -5 -4 -4 -4 -4 -3 -3 -3 -2 -2 -1 -1 -1 ------- Run | Scr Mat Min Mat Min Exi Min Mat Fac Low Low Zio Dee Pro Fac Ext Cet Arc Hub Fac Was Fac Upp Upp War Pro Fac Arm Lab Res Qua Sec Res Tes Acc Com Ac0 Traps Triggered 26 | . 1 . . . . . 3 2 . . . . . 3 3 . . . 1 . 4 . . 1 . 1 . . . 2 . . 1 1 3 . Indirectly . | . . . . . . . . . . . . . . . . . . . . . . . . . . . . . . . . . . . . . Trap Hack Attempts 34 | . 34 . . . . . . . . . . . . . . . . . . . . . . . . . . . . . . . . . . . Triggered . | . . . . . . . . . . . . . . . . . . . . . . . . . . . . . . . . . . . . . Disarmed 4 | . . . . . . . . . . . . . . . . . . . . . . . . . . . 4 . . . . . . . . . Reprogrammed 3 | . 3 . . . . . . . . . . . . . . . . . . . . . . . . . . . . . . . . . . . Reused 4 | . . . . . 4 . . . . . . . . . . . . . . . . . . . . . . . . . . . . . . . Traps Extracted . | . . . . . . . . . . . . . . . . . . . . . . . . . . . . . . . . . . . . . Installed 4 | . . . . . 4 . . . . . . . . . . . . . . . . . . . . . . . . . . . . . . . Triggered 20 | . 1 . . . . . . . . . . . . . . . . . . . . . . 18 1 . . . . . . . . . . . Most Traps Carried 4 | . . . . 4 4 . . . . . . . . . . . . . . . . . . . . . . . . . . . . . . . Exploded 3 | . . . . . 3 . . . . . . . . . . . . . . . . . . . . . . . . . . . . . . . Machines | -11 -10 -10 -9 -9 -9 -8 -8 -7 -7 -7 -7 -7 -6 -6 -6 -6 -6 -6 -5 -5 -5 -5 -5 -5 -4 -4 -4 -4 -3 -3 -3 -2 -2 -1 -1 -1 ---------- Run | Scr Mat Min Mat Min Exi Min Mat Fac Low Low Zio Dee Pro Fac Ext Cet Arc Hub Fac Was Fac Upp Upp War Pro Fac Arm Lab Res Qua Sec Res Tes Acc Com Ac0 Machines Disabled 109 | . 1 2 1 1 15 . 3 3 . . . 4 . 1 . . 2 14 2 . 2 . 2 1 . 7 1 11 . 7 7 1 8 . 8 5 Max in Single Turn 6 | . 1 2 1 1 2 . 2 2 . . . 1 . 1 . . . 6 1 . 1 . 1 1 . 4 1 1 . 2 1 1 1 . 2 1 Garrison Access 8 | . . . . . . . 1 . . . . . . 1 . . . 1 . . 2 . . . . . . . 1 . . . 1 1 . . Phase Generator 1 | . . . . . . . . . . . . . . . . . . . . . . . . . . . . . . . . . . . 1 . Network Hub 4 | . . . . . . . . . . . . . . . . . . 4 . . . . . . . . . . . . . . . . . . Machines Sabotaged 3 | . . . . . . . . . . . . . . . . . . 3 . . . . . . . . . . . . . . . . . . Garrisons Compromised . | . . . . . . . . . . . . . . . . . . . . . . . . . . . . . . . . . . . . . Overloaded Fab Kills . | . . . . . . . . . . . . . . . . . . . . . . . . . . . . . . . . . . . . . Hacking | -11 -10 -10 -9 -9 -9 -8 -8 -7 -7 -7 -7 -7 -6 -6 -6 -6 -6 -6 -5 -5 -5 -5 -5 -5 -4 -4 -4 -4 -3 -3 -3 -2 -2 -1 -1 -1 --------- Run | Scr Mat Min Mat Min Exi Min Mat Fac Low Low Zio Dee Pro Fac Ext Cet Arc Hub Fac Was Fac Upp Upp War Pro Fac Arm Lab Res Qua Sec Res Tes Acc Com Ac0 Machines Accessed 109 | . 7 1 10 . 1 . 4 7 . . . . . 7 2 . . 4 . . 7 1 2 1 . 3 8 . 3 8 9 2 4 5 13 . Terminals 78 | . 4 . 7 . . . 2 3 . . . . . 4 2 . . 4 . . 2 . 1 . . 3 7 . 1 7 9 2 3 4 13 . Fabricators 4 | . . . . . . . . 1 . . . . . 1 . . . . . . 1 . . . . . 1 . . . . . . . . . Repair Stations 7 | . 1 . 1 . . . . 2 . . . . . 1 . . . . . . 2 . . . . . . . . . . . . . . . Recycling Units 6 | . 2 . 2 . . . 1 1 . . . . . . . . . . . . . . . . . . . . . . . . . . . . Scanalyzers 2 | . . . . . . . . . . . . . . 1 . . . . . . . . . . . . . . 1 . . . . . . . Garrison Access 7 | . . . . . . . 1 . . . . . . . . . . . . . 2 . . . . . . . 1 1 . . 1 1 . . Total Hacks 336 | . 17 1 27 . 1 . 8 16 . . . . . 13 7 . . 10 . . 28 1 7 1 . 5 37 . 9 28 38 9 30 10 33 . Successful 167 | . 12 1 16 . 1 . 7 10 . . . . . 6 3 . . 6 . . 13 1 7 1 . 2 20 . 6 8 16 . 9 4 18 . Failed 168 | . 4 . 11 . . . 1 6 . . . . . 7 4 . . 4 . . 15 . . . . 3 17 . 3 20 22 9 21 6 15 . Catastrophic 38 | . 1 . 1 . . . . . . . . . . 1 1 . . . . . 5 . . . . . 6 . 1 5 3 4 6 2 2 . Database Lockouts 1 | . 1 . . . . . . . . . . . . . . . . . . . . . . . . . . . . . . . . . . . Manual 139 | . 11 . 15 . . . 6 3 . . . . . 3 1 1 . 7 . . 4 . . . . 3 10 . . 21 17 . 15 . 22 . Terminals 271 | . 9 . 22 . . . 5 9 . . . . . 5 7 . . 10 . . 11 . 6 . . 5 34 . 4 27 38 9 28 9 33 . Fabricators 10 | . . . . . . . . 2 . . . . . 2 . . . . . . 3 . . . . . 3 . . . . . . . . . Repair Stations 26 | . 6 . 2 . . . . 4 . . . . . 4 . . . . . . 10 . . . . . . . . . . . . . . . Recycling Units 7 | . 2 . 3 . . . 1 1 . . . . . . . . . . . . . . . . . . . . . . . . . . . . Scanalyzers 6 | . . . . . . . . . . . . . . 2 . . . . . . . . . . . . . . 4 . . . . . . . Garrison Access 11 | . . . . . . . 2 . . . . . . . . . . . . . 4 . . . . . . . 1 1 . . 2 1 . . Terminal Hacks 84 | . 1 1 8 . 1 . 1 3 . . . . . 2 2 . . 2 . . 5 1 7 1 . 1 15 . 1 4 11 . 5 3 9 . Record 7 | . . . . . 1 . . . . . . . . . . . . . . . . . 6 . . . . . . . . . . . . . Robot Analysis 1 | . 1 . . . . . . . . . . . . . . . . . . . . . . . . . . . . . . . . . . . Prototype ID Bank 8 | . . . 1 . . . . 1 . . . . . . . . . . . . 1 . . . . . 2 . . 1 1 . 1 . . . Open Door 15 | . . 1 . . . . . . . . . . . 1 . . . . . . . 1 1 1 . . 3 . . . 3 . . 3 1 . Level Access Points 1 | . . . . . . . . . . . . . . . . . . 1 . . . . . . . . . . . . . . . . . . Branch Access Points 5 | . . . . . . . 1 1 . . . . . . . . . . . . 1 . . . . 1 . . 1 . . . . . . . Emergency Access Points 2 | . . . . . . . . . . . . . . . . . . . . . . . . . . . 1 . . . . . . . 1 . Machine Index 1 | . . . . . . . . . . . . . . . . . . . . . 1 . . . . . . . . . . . . . . . Terminal Index 2 | . . . . . . . . . . . . . . . . . . . . . . . . . . . . . . 1 . . . . 1 . Alert Level 7 | . . . 2 . . . . . . . . . . . 1 . . . . . . . . . . . 2 . . 2 . . . . . . Unreport Threat 8 | . . . 2 . . . . . . . . . . . . . . 1 . . 1 . . . . . 2 . . . 1 . . . 1 . Locate Traps 10 | . . . . . . . . . . . . . . 1 . . . . . . 1 . . . . . 1 . . . 3 . 2 . 2 . Disarm Traps 1 | . . . . . . . . . . . . . . . . . . . . . . . . . . . 1 . . . . . . . . . Maintenance Status 1 | . . . . . . . . . . . . . . . . . . . . . . . . . . . . . . . . . . . 1 . Patrol Status 1 | . . . 1 . . . . . . . . . . . . . . . . . . . . . . . . . . . . . . . . . Recall Extermination 1 | . . . . . . . . . . . . . . . . . . . . . . . . . . . . . . . 1 . . . . . Hauler Manifests 3 | . . . 1 . . . . . . . . . . . 1 . . . . . . . . . . . . . . . . . 1 . . . Zone Layout 8 | . . . 1 . . . . 1 . . . . . . . . . . . . . . . . . . 3 . . . 2 . 1 . . . Disengage Seal 2 | . . . . . . . . . . . . . . . . . . . . . . . . . . . . . . . . . . . 2 . Fabricator Hacks 3 | . . . . . . . . 1 . . . . . . . . . . . . 1 . . . . . 1 . . . . . . . . . Network Status 2 | . . . . . . . . 1 . . . . . . . . . . . . 1 . . . . . . . . . . . . . . . Build 1 | . . . . . . . . . . . . . . . . . . . . . . . . . . . 1 . . . . . . . . . Repair Station Hacks 16 | . 6 . 2 . . . . 3 . . . . . 2 . . . . . . 3 . . . . . . . . . . . . . . . Scan Component 10 | . 3 . 1 . . . . 2 . . . . . 2 . . . . . . 2 . . . . . . . . . . . . . . . Repair 6 | . 3 . 1 . . . . 1 . . . . . . . . . . . . 1 . . . . . . . . . . . . . . . Recycling Unit Hacks . | . . . . . . . . . . . . . . . . . . . . . . . . . . . . . . . . . . . . . Scanalyzer 5 | . . . . . . . . . . . . . . 1 . . . . . . . . . . . . . . 4 . . . . . . . Insert Component 5 | . . . . . . . . . . . . . . 1 . . . . . . . . . . . . . . 4 . . . . . . . Garrison Access Hacks 6 | . . . . . . . 1 . . . . . . . . . . . . . 2 . . . . . . . 1 . . . 1 1 . . Seal Access 6 | . . . . . . . 1 . . . . . . . . . . . . . 2 . . . . . . . 1 . . . 1 1 . . Unauthorized Hacks 53 | . 5 . 6 . . . 5 3 . . . . . 1 1 . . 4 . . 2 . . . . 1 4 . . 4 5 . 3 . 9 . Terminals 42 | . 3 . 4 . . . 4 1 . . . . . 1 1 . . 4 . . . . . . . 1 2 . . 4 5 . 3 . 9 . Track 9 | . . . 1 . . . 1 . . . . . . . . . . 1 . . . . . . . . . . . 2 2 . 1 . 1 . Assimilate 4 | . . . . . . . . . . . . . . . . . . . . . . . . . . . . . . . . . . . 4 . Botnet 20 | . 2 . 2 . . . 2 1 . . . . . 1 1 . . . . . . . . . . 1 1 . . 2 2 . 2 . 3 . Operators 6 | . 1 . 1 . . . 1 . . . . . . . . . . . . . . . . . . . 1 . . . 1 . . . 1 . Sabotage 3 | . . . . . . . . . . . . . . . . . . 3 . . . . . . . . . . . . . . . . . . Fabricators 4 | . . . . . . . . 1 . . . . . . . . . . . . 1 . . . . . 2 . . . . . . . . . Prioritize 1 | . . . . . . . . . . . . . . . . . . . . . . . . . . . 1 . . . . . . . . . Liberate 3 | . . . . . . . . 1 . . . . . . . . . . . . 1 . . . . . 1 . . . . . . . . . Repair Stations 1 | . . . . . . . . . . . . . . . . . . . . . 1 . . . . . . . . . . . . . . . Mechanics 1 | . . . . . . . . . . . . . . . . . . . . . 1 . . . . . . . . . . . . . . . Recycling Units 6 | . 2 . 2 . . . 1 1 . . . . . . . . . . . . . . . . . . . . . . . . . . . . Tunnel 6 | . 2 . 2 . . . 1 1 . . . . . . . . . . . . . . . . . . . . . . . . . . . . Scanalyzers . | . . . . . . . . . . . . . . . . . . . . . . . . . . . . . . . . . . . . . Garrison Access . | . . . . . . . . . . . . . . . . . . . . . . . . . . . . . . . . . . . . . Data Cores Recovered 4 | . 1 . 1 . . . . 1 . . . . . 1 . . . . . . . . . . . . . . . . . . . . . . Used . | . . . . . . . . . . . . . . . . . . . . . . . . . . . . . . . . . . . . . Hacking Detections 67 | . 4 . 7 . . . 3 5 . . . . . 6 2 . . 4 . . 4 . . . . . 5 . 2 7 6 2 2 2 6 . Full Trace Events 4 | . . . . . . . . . . . . . . 1 1 . . . . . . . . . . . . . . . . 1 . 1 . . Feedback Events . | . . . . . . . . . . . . . . . . . . . . . . . . . . . . . . . . . . . . . Feedback Blocked . | . . . . . . . . . . . . . . . . . . . . . . . . . . . . . . . . . . . . . Robot Schematics Acquired 7 | . . . . . . . . . . . . . . . . . . . . . . . . . . . . . . 7 . . . . . . Robots Built . | . . . . . . . . . . . . . . . . . . . . . . . . . . . . . . . . . . . . . Authchips . | . . . . . . . . . . . . . . . . . . . . . . . . . . . . . . . . . . . . . Time . | . . . . . . . . . . . . . . . . . . . . . . . . . . . . . . . . . . . . . Total Robot Build Rating . | . . . . . . . . . . . . . . . . . . . . . . . . . . . . . . . . . . . . . Part Schematics Acquired 20 | . . . . . . . . . . . . . . . . . . . . . . . . . . . . . . 16 . . 4 . . . Parts Built 2 | . . . . . . . . . . . . . . . . . . . . . . . . . . . 2 . . . . . . . . . Authchips . | . . . . . . . . . . . . . . . . . . . . . . . . . . . . . . . . . . . . . Time 139 | . . . . . . . . . . . . . . . . . . . . . . . . . . . 139 . . . . . . . . . Total Part Build Rating 18 | . . . . . . . . . . . . . . . . . . . . . . . . . . . 18 . . . . . . . . . Parts Repaired 6 | . 3 . 1 . . . . 1 . . . . . . . . . . . . 1 . . . . . . . . . . . . . . . Time 278 | . 78 . 51 . . . . 95 . . . . . . . . . . . . 54 . . . . . . . . . . . . . . . Parts Recycled . | . . . . . . . . . . . . . . . . . . . . . . . . . . . . . . . . . . . . . Recycled Matter . | . . . . . . . . . . . . . . . . . . . . . . . . . . . . . . . . . . . . . Retrieved Matter . | . . . . . . . . . . . . . . . . . . . . . . . . . . . . . . . . . . . . . Retrieved Components . | . . . . . . . . . . . . . . . . . . . . . . . . . . . . . . . . . . . . . Parts Scanalyzed . | . . . . . . . . . . . . . . . . . . . . . . . . . . . . . . . . . . . . . Part Schematics Acquired . | . . . . . . . . . . . . . . . . . . . . . . . . . . . . . . . . . . . . . Parts Damaged . | . . . . . . . . . . . . . . . . . . . . . . . . . . . . . . . . . . . . . Bothacking | -11 -10 -10 -9 -9 -9 -8 -8 -7 -7 -7 -7 -7 -6 -6 -6 -6 -6 -6 -5 -5 -5 -5 -5 -5 -4 -4 -4 -4 -3 -3 -3 -2 -2 -1 -1 -1 ------------ Run | Scr Mat Min Mat Min Exi Min Mat Fac Low Low Zio Dee Pro Fac Ext Cet Arc Hub Fac Was Fac Upp Upp War Pro Fac Arm Lab Res Qua Sec Res Tes Acc Com Ac0 Used RIF Installer . | . . . . . . . . . . . . . . . . . . . . . . . . . . . . . . . . . . . . . Robots Hacked 12 | . 1 . . . 4 . . . . . . 1 . . . . . . . . . . . . . . . . . . . . . . 6 . Non-combat 4 | . 1 . . . 3 . . . . . . . . . . . . . . . . . . . . . . . . . . . . . . . Combat 8 | . . . . . 1 . . . . . . 1 . . . . . . . . . . . . . . . . . . . . . . 6 . Robot Hacks Applied 13 | . 1 . . . 4 . . . . . . 1 . . . . . . . . . . . . . . . . . . . . . . 7 . parse_system 13 | . 1 . . . 4 . . . . . . 1 . . . . . . . . . . . . . . . . . . . . . . 7 . Relay Couplers Released 11 | . . . . . . . . . . . . . . 2 . . . 1 . . . . . . . . . . 4 4 . . . . . . Machine Destruction 3 | . . . . . . . . . . . . . . 2 . . . 1 . . . . . . . . . . . . . . . . . . Programmers 8 | . . . . . . . . . . . . . . . . . . . . . . . . . . . . . 4 4 . . . . . . Fabnet Peak Effective % . | . . . . . . . . . . . . . . . . . . . . . . . . . . . . . . . . . . . . . Robots Rewired 43 | . . . . . . . . . . . . . . . 29 . . . . . . . . 5 . . 8 . . . . . 1 . . . Allies Hacked 1 | . . . . . . . . . . . . . . . . . . . . . 1 . . . . . . . . . . . . . . . Hacks Repelled . | . . . . . . . . . . . . . . . . . . . . . . . . . . . . . . . . . . . . . Allies | -11 -10 -10 -9 -9 -9 -8 -8 -7 -7 -7 -7 -7 -6 -6 -6 -6 -6 -6 -5 -5 -5 -5 -5 -5 -4 -4 -4 -4 -3 -3 -3 -2 -2 -1 -1 -1 -------- Run | Scr Mat Min Mat Min Exi Min Mat Fac Low Low Zio Dee Pro Fac Ext Cet Arc Hub Fac Was Fac Upp Upp War Pro Fac Arm Lab Res Qua Sec Res Tes Acc Com Ac0 Total Allies 67 | . . 2 . 3 . . . . . . 4 1 . . 30 5 . . . . 3 . . 5 . . 8 . . . . . 1 . 3 2 Largest Group 24 | . . 2 1 3 3 1 . . . . 4 5 1 . 24 24 5 5 . . 3 . . 5 4 3 8 . . . . . 1 . 1 1 Highest-Rated Group 880 | . . 41 10 40 40 16 . . . . 85 204 105 . 836 880 473 473 . . 87 . . 258 186 145 343 . . . . . 112 . 234 234 Highest-Rated Ally 234 | . . 31 10 16 16 16 . . . . 31 119 105 . 159 159 96 96 . . 29 . . 68 65 65 65 . . . . . 112 . 234 234 Total Orders 51 | . . . . . 7 . . . . . . 9 . 1 . 5 . . 1 . 2 . . 4 1 4 3 . . 1 . . 8 . 1 4 STAY 19 | . . . . . 4 . . . . . . 3 . . . 3 . . . . . . . 2 1 1 1 . . . . . 2 . 1 1 FOLLOW 10 | . . . . . 2 . . . . . . 1 . . . 2 . . . . . . . 2 . . 1 . . . . . 2 . . . EXPLORE 11 | . . . . . . . . . . . . 5 . . . . . . . . . . . . . . . . . . . . 3 . . 3 RETURN 11 | . . . . . 1 . . . . . . . . 1 . . . . 1 . 2 . . . . 3 1 . . 1 . . 1 . . . Ally Attacks 654 | . . 1 . . 73 2 . . . . . 187 1 . 75 97 10 49 . . 42 . . 9 30 12 24 . . . . . . . . 42 Total Damage 23867 | . . . . . 416 32 . . . . . 10568 130 . 1543 2248 404 1916 . . 559 . . 528 997 215 795 . . . . . . . . 3516 Kills 84 | . . . . . 1 . . . . . . 26 . . 10 16 1 11 . . 3 . . 4 4 1 5 . . . . . . . . 2 Allies Corrupted 7 | . . . . . . . . . . . . . . . . . . 4 . . 1 . . . . . 1 . . . . . 1 . . . Allies Melted 5 | . . . . . . . . . 1 . . . . . . . . . . . 1 . . . . . . . . . . 3 . . . . Intel | -11 -10 -10 -9 -9 -9 -8 -8 -7 -7 -7 -7 -7 -6 -6 -6 -6 -6 -6 -5 -5 -5 -5 -5 -5 -4 -4 -4 -4 -3 -3 -3 -2 -2 -1 -1 -1 ------- Run | Scr Mat Min Mat Min Exi Min Mat Fac Low Low Zio Dee Pro Fac Ext Cet Arc Hub Fac Was Fac Upp Upp War Pro Fac Arm Lab Res Qua Sec Res Tes Acc Com Ac0 Robot Analysis Total 1 | . 1 . . . . . . . . . . . . . . . . . . . . . . . . . . . . . . . . . . . Derelict Logs Recovered 11 | . . 1 . 2 . . . . 1 1 . . 1 . . . . . . . . 1 1 . 3 . . . . . . . . . . . Drone Launches 30 | . . . . . 9 . . . . . . 8 . 1 . . . . 1 . 2 . . . . 3 1 . . 1 . . 2 . . 2 Drone Recoveries 10 | . . . . . 1 . . . . . . . . 1 . . . . 1 . 2 . . . . 3 1 . . 1 . . . . . . Exploration | -11 -10 -10 -9 -9 -9 -8 -8 -7 -7 -7 -7 -7 -6 -6 -6 -6 -6 -6 -5 -5 -5 -5 -5 -5 -4 -4 -4 -4 -3 -3 -3 -2 -2 -1 -1 -1 ------------- Run | Scr Mat Min Mat Min Exi Min Mat Fac Low Low Zio Dee Pro Fac Ext Cet Arc Hub Fac Was Fac Upp Upp War Pro Fac Arm Lab Res Qua Sec Res Tes Acc Com Ac0 Turns Passed 89674 | . 2464 2082 3113 1345 2636 1212 1664 3081 2365 2436 2528 4406 2701 1612 2180 400 1023 697 1158 214 1525 2454 2061 1742 1919 1616 1624 2117 2248 6160 1757 621 2431 1448 18275 2359 Spaces Moved 34944 | 1 1090 804 1325 751 1283 663 558 994 916 988 1029 1427 919 711 798 146 53 255 478 80 593 994 964 780 1009 612 549 550 379 2937 883 327 1087 546 6327 1138 Core 9 | . . . . . . . . . . . . . . . . . . . . . . . . . . . . . . . . . . . . 9 Treads 23967 | . 729 804 1325 751 1283 663 558 994 916 988 1029 991 . . . . . . . . . . . . . . . . . 2637 883 327 1087 546 6327 1129 Legs 10968 | 1 361 . . . . . . . . . . 436 919 711 798 146 53 255 478 80 593 994 964 780 1009 612 549 550 379 300 . . . . . . Wheels . | . . . . . . . . . . . . . . . . . . . . . . . . . . . . . . . . . . . . . Hover . | . . . . . . . . . . . . . . . . . . . . . . . . . . . . . . . . . . . . . Flight . | . . . . . . . . . . . . . . . . . . . . . . . . . . . . . . . . . . . . . Fastest Speed 50 | 120 120 240 160 160 160 160 160 240 240 240 240 180 183 183 183 183 189 183 183 183 183 183 183 183 183 180 180 187 186 145 151 151 151 151 143 50 Average Speed 182 | 120 159 240 207 160 163 160 224 242 240 240 240 229 183 183 183 188 189 186 183 183 183 183 183 183 183 180 182 187 186 160 154 154 161 151 160 142 Slowest Speed 625 | 120 240 240 240 160 320 240 240 320 240 240 240 320 183 183 183 300 189 189 226 183 183 235 183 226 183 235 235 190 190 625 163 155 163 155 240 146 Overloaded Moves . | . . . . . . . . . . . . . . . . . . . . . . . . . . . . . . . . . . . . . Propulsion Burnouts . | . . . . . . . . . . . . . . . . . . . . . . . . . . . . . . . . . . . . . Robots Hopped . | . . . . . . . . . . . . . . . . . . . . . . . . . . . . . . . . . . . . . Cave-ins Triggered 1 | . . . . . . . . . . . . . . . . . . . . . . . . 1 . . . . . . . . . . . . Teleports 3 | . . . . . . . . . . . . . . . . . . . . . . . . . . . . . . . . . . 1 1 1 Exploration Rate (%) 66 | 2 95 99 95 98 88 99 55 31 98 94 85 92 94 20 87 56 72 34 21 84 26 90 87 78 98 17 38 97 18 94 62 8 91 18 93 60 Regions Visited 36 Branch Regions 24 Pre-discovered Areas 15 | . 2 1 2 . 1 . 1 1 . . 3 . 1 . . . . . . . . . 2 . 1 . . . . . . . . . . . Known Exits Taken 15 | . . . . . . 1 1 1 . . . . 1 . . . . 1 . . 1 . . . . 1 1 1 1 1 1 1 1 1 . . Unknown Exits Taken 19 | 1 1 1 1 1 1 . . . 1 1 1 1 . 1 1 1 1 . . . . 1 1 1 1 . . . . . . . . . 1 . Scrap Searched 23 | . . 1 . 1 . 1 . . 5 2 2 . 1 . . . . . . . . 4 3 . 3 . . . . . . . . . . . Spaces Dug 274 | . . . . . 7 . . 3 . . 3 2 8 12 4 . 2 . 19 . 13 14 7 24 10 19 22 40 10 2 . 6 19 9 14 5 Terrain Destroyed 1523 | . . 17 32 53 54 . 74 90 15 25 3 21 30 20 27 2 3 183 61 8 54 38 28 52 23 69 88 70 22 34 5 54 51 30 142 45 Melee 17 | . . . . . . . . . . . 3 . . . . . . . . . . . . . . . . . . . . . 5 1 8 . Projectile 701 | . . 1 1 3 14 . . . 8 . . 18 30 20 27 2 3 20 50 7 42 38 28 34 23 54 56 70 22 11 5 11 33 23 13 34 AOE 780 | . . 16 31 50 38 . 74 90 7 25 . . . . . . . 163 11 . 12 . . 18 . 15 32 . . 22 . 43 13 6 114 . Terrain Rammed . | . . . . . . . . . . . . . . . . . . . . . . . . . . . . . . . . . . . . . Walls Destroyed . | . . . . . . . . . . . . . . . . . . . . . . . . . . . . . . . . . . . . . Machines Disabled . | . . . . . . . . . . . . . . . . . . . . . . . . . . . . . . . . . . . . . Actions | -11 -10 -10 -9 -9 -9 -8 -8 -7 -7 -7 -7 -7 -6 -6 -6 -6 -6 -6 -5 -5 -5 -5 -5 -5 -4 -4 -4 -4 -3 -3 -3 -2 -2 -1 -1 -1 --------- Run | Scr Mat Min Mat Min Exi Min Mat Fac Low Low Zio Dee Pro Fac Ext Cet Arc Hub Fac Was Fac Upp Upp War Pro Fac Arm Lab Res Qua Sec Res Tes Acc Com Ac0 Total 57431 | . 1673 952 1537 827 1614 776 841 1460 1063 1034 1077 2435 1857 981 1446 212 974 412 690 112 947 1590 1217 1041 1050 1030 1014 1487 1869 4325 1171 417 1604 1027 14065 1604 Wait 16878 | . 365 108 54 15 100 72 111 205 103 20 2 772 876 198 264 5 904 88 91 . 251 532 210 117 11 277 177 698 1430 1081 115 28 187 306 7092 13 Move 34907 | . 1089 803 1324 750 1282 662 557 993 915 987 1028 1426 918 710 797 145 52 254 478 79 592 993 963 778 1008 611 548 549 378 2936 882 326 1086 545 6326 1137 Hop . | . . . . . . . . . . . . . . . . . . . . . . . . . . . . . . . . . . . . . Pick Up 366 | . 28 8 13 5 19 1 14 18 5 1 7 25 1 3 2 3 1 5 6 . 5 2 . 7 . 6 15 12 1 38 14 1 13 7 71 9 Fast Attach 375 | . 5 2 6 1 5 2 5 17 3 1 8 9 2 5 1 6 2 1 3 . 5 9 2 8 2 17 12 10 7 72 17 15 31 7 54 23 Attach 190 | . 5 . 2 3 7 . 9 11 . . 3 8 . 2 1 3 . 1 4 . 1 . . 3 . 2 4 6 1 10 9 3 25 6 38 23 Detach 271 | . . 1 1 . 6 . 3 2 . . . 19 9 6 5 1 6 1 13 2 5 12 2 10 1 12 8 23 3 18 8 3 24 1 41 25 Swap 416 | . 10 6 12 3 14 . 14 35 13 7 7 20 8 10 1 . . 5 15 2 14 2 . 7 . 13 18 4 2 10 25 4 28 15 44 48 Drop 645 | . 12 16 22 5 25 3 10 29 8 2 15 46 2 5 3 8 4 5 5 . 3 11 2 11 2 19 28 19 9 104 18 15 44 8 111 16 Fire 2433 | . 72 5 82 34 97 32 109 140 16 13 . 107 41 32 60 23 5 50 74 29 67 29 37 72 25 73 100 166 38 50 69 19 105 127 130 305 Melee 141 | . 2 . . . 4 . . . . . 7 1 . . . . . . . . . . . . . . . . . 6 13 3 31 4 65 5 Ram . | . . . . . . . . . . . . . . . . . . . . . . . . . . . . . . . . . . . . . Kick 75 | . 43 . . . . . . . . . . . . . 6 18 . 2 1 . 3 . 1 . 1 . . . . . . . . . . . Crush 203 | . 8 3 21 11 49 4 9 10 . 3 . 2 . . . . . . . . . . . . . . . . . . 1 . . 1 81 . Escape Stasis 26 | . . . . . . . . . . . . . . 10 15 . . . . . . . . 1 . . . . . . . . . . . . Rewire 467 | . . . . . 2 . . . . . . . . . 291 . . . . . 1 . . 27 . . 104 . . . . . 30 . 12 . Trap 38 | . 34 . . . 4 . . . . . . . . . . . . . . . . . . . . . . . . . . . . . . . Miscellaneous . | . . . . . . . . . . . . . . . . . . . . . . . . . . . . . . . . . . . . . Route ------- -11/Scrapyard -10/Materials (discovered 4 exits: *Mat x3 / *Min) -10/Mines (discovered 2 exits: *Mat x2) -9/Materials (discovered 5 exits: *Mat x3 / [*Min x2]) -9/Mines (discovered 4 exits: *Mat x2 / *Exi / [*Zio]) -9/Exiles -8/Mines (discovered 2 exits: *Mat x2) -8/Materials (discovered 3 exits: *Fac x3) -7/Factory (discovered 6 exits: *Fac x2 / Sto x2 / *Low x2) -7/Lower Caves -7/Lower Caves (discovered 2 exits: *Fac / [*Zio]) -7/Zion (discovered 2 exits: [*Dee] / [*Pro]) -7/Deep Caves -6/Proximity Caves -6/Factory (discovered 7 exits: *Fac x4 / *Low x2 / *Ext) -6/Extension (discovered 2 exits: *Fac / *Cet) -6/Cetus (discovered 2 exits: *Fac / [*Arc]) -6/Archives -6/Hub_04(d) (discovered 4 exits: *Fac x4) -5/Factory -5/Waste -5/Factory (discovered 2 exits: *Upp x2) -5/Upper Caves -5/Upper Caves (discovered 2 exits: *Fac / *War) -5/Warlord -4/Proximity Caves -4/Factory (discovered 4 exits: *Res / Upp x2 / *Arm) -4/Armory (discovered 2 exits: *Res / *Lab) -4/Lab -3/Research (discovered 3 exits: Res / *Qua x2) -3/Quarantine (discovered 2 exits: *Res / *Sec) -3/Section 7 -2/Research (discovered 2 exits: *Acc / *Tes) -2/Testing -1/Access -1/Command (discovered 3 exits: [*Sur x2] / [*Ac0]) -1/Access_0 Near Former Tau Ceti IV History --------- Turn | Location | Event 1 | -11/Scrapyard | Discovered new exit (range 0) 1 | -11/Scrapyard | Entered Materials 81 | -10/Materials | Discovered new exit (range 14) 317 | -10/Materials | Build established: Mutant 500 | -10/Materials | Central database locked down 599 | -10/Materials | Lost 3 parts (2n1w) 797 | -10/Materials | Discovered new exit (range 10) 1084 | -10/Materials | Discovered new exit (range 8) 1116 | -10/Materials | Core integrity fell below 50% 1889 | -10/Materials | Discovered new exit (range 15) 2369 | -10/Materials | Repaired Lgt. Treads 2398 | -10/Materials | Repaired Ion Engine 2425 | -10/Materials | Repaired Lgt. Treads 2465 | -10/Materials | Entered Mines 2470 | -10/Mines | Met a Derelict bent on vengeance 3362 | -10/Mines | Found a damaged Exp. Sensor Array with a note attached 3370 | -10/Mines | Found Prototype Device 3370 | -10/Mines | Identified Exp. Sensor Array 3897 | -10/Mines | Discovered new exit (range 7) 4133 | -10/Mines | Discovered new exit (range 8) 4158 | -10/Mines | Found the Drone Emporium 4179 | -10/Mines | Found Prototype Device 4256 | -10/Mines | Build established: Scavenger-Mutant 4547 | -10/Mines | Entered Materials 4547 | -9/Materials | Accompanied by 1 ally 4547 | -9/Materials | Evolved 2 slots: Propulsion x1, Utility x1 4665 | -9/Materials | Discovered new exit (range 12) 5295 | -9/Materials | Discovered new exit (range 3) 6061 | -9/Materials | Discovered new exit (range 10) 6226 | -9/Materials | Discovered new exit (range 9) 6976 | -9/Materials | Repaired Hvy. Ion Engine? 7067 | -9/Materials | Discovered new exit (range 7) 7660 | -9/Materials | Entered Mines 7732 | -9/Mines | Deemed a non-threat by the Exiles lab entrance 7887 | -9/Mines | Assembled infested the area 8021 | -9/Mines | Identified exit to Materials 8024 | -9/Mines | A Derelict revealed a hidden shortcut to a safe place 8171 | -9/Mines | Received a Rocket Launcher from a helpful Derelict 8184 | -9/Mines | Learned location of 2 exits from Materials 8219 | -9/Mines | Found a hidden stash of uninstalled traps 8339 | -9/Mines | Discovered exit to Materials (range 6) 8456 | -9/Mines | Assisted by bots powering up and referring to "LRC-V3" 8999 | -9/Mines | Discovered new exit (range 5) 9005 | -9/Mines | Entered Exiles 9005 | -9/Exiles | Accompanied by 3 allies 9047 | -9/Exiles | Met 8R-AWN 9075 | -9/Exiles | Met EX-HEX 9138 | -9/Exiles | Met EX-DEC 9297 | -9/Exiles | Learned location of Zion (-7) 9344 | -9/Exiles | Discovered new exit (range 14) 9769 | -9/Exiles | Met EX-BIN 10068 | -9/Exiles | Attacked by the Exiles 10117 | -9/Exiles | Identified Decoy Drone Bay 10251 | -9/Exiles | Destroyed 8R-AWN 10257 | -9/Exiles | Found 8R-AWN's Boregun 10259 | -9/Exiles | Found AS-neutralizer No. 17b 10419 | -9/Exiles | Build established: Mutant 10534 | -9/Exiles | Found 8R-AWN's Boregun 11233 | -9/Exiles | Destroyed EX-DEC 11254 | -9/Exiles | Destroyed EX-HEX 11276 | -9/Exiles | Destroyed EX-BIN 11285 | -9/Exiles | Found System Purifier 11352 | -9/Exiles | Found Exp. Core Analyzer 11641 | -9/Exiles | Entered Mines 11641 | -8/Mines | Accompanied by 1 ally 11673 | -8/Mines | Discovered exit to Materials (range 11) 11677 | -8/Mines | Core integrity fell below 50% 12348 | -8/Mines | Discovered exit to Materials (range 14) 12853 | -8/Mines | Entered Materials 12853 | -8/Materials | Evolved 2 slots: Utility x2 12854 | -8/Materials | Identified exit to Factory 13145 | -8/Materials | Build established: Scavenger-Mutant 13544 | -8/Materials | Discovered exit to Factory (range 3) 14517 | -8/Materials | Entered Factory 14517 | -7/Factory | Evolved 2 slots: Power x1, Utility x1 15004 | -7/Factory | Repaired Broken Adv. Weapon Cycler 15314 | -7/Factory | Garrison activated, responded to threat 15717 | -7/Factory | First assault squad dispatched 15871 | -7/Factory | Discovered new exit (range 8) 16135 | -7/Factory | Identified exit to Factory 16783 | -7/Factory | Discovered exit to Factory (range 16) 17033 | -7/Factory | Identified exit to Storage 17033 | -7/Factory | Identified exit to Lower Caves 17598 | -7/Factory | Entered Lower Caves 17650 | -7/Lower Caves | Learned 8 Factory zone layouts 17752 | -7/Lower Caves | Encountered a Warlord checkpoint 18545 | -7/Lower Caves | Discovered new exit (range 7) 19963 | -7/Lower Caves | Entered another Lower Caves area 19965 | -7/Lower Caves | Attracted the attention of an 0b10 checkpoint 20286 | -7/Lower Caves | Discovered exit to Factory (range 6) 20939 | -7/Lower Caves | Learned Factory non-interactive machine intel 21881 | -7/Lower Caves | Discovered new exit (range 10) 22399 | -7/Lower Caves | Entered Zion 22429 | -7/Zion | Given the Hacking Drone Bay 22508 | -7/Zion | System corruption cleaned by Quarantine Array 22662 | -7/Zion | Found Prototype Device 22665 | -7/Zion | Identified Hacking Drone Bay 22841 | -7/Zion | Discovered new exit (range 10) 23055 | -7/Zion | Learned location of Recycling (-7) 23136 | -7/Zion | Gained Derelict followers 23529 | -7/Zion | Learned location of Warlord (-5) 24352 | -7/Zion | Found Prototype Special Weapon 24355 | -7/Zion | Identified RU-N14's Throwing Claymores 24361 | -7/Zion | Found RU-N14's Throwing Claymores 24365 | -7/Zion | Found RU-N14's Throwing Claymores 24370 | -7/Zion | Found RU-N14's Throwing Claymores 24545 | -7/Zion | Discovered new exit (range 4) 24547 | -7/Zion | Saw the warning signs outside the Deep Caves entrance 24927 | -7/Zion | Entered Deep Caves 24927 | -7/Deep Caves | Accompanied by 4 allies 24930 | -7/Deep Caves | Met 5H-AD0 25493 | -7/Deep Caves | Z-Facility disabled 25666 | -7/Deep Caves | Attacked by Z-Imprinter 25689 | -7/Deep Caves | Allies destroyed Z-Imprinter 26026 | -7/Deep Caves | Found Prototype Protection 26026 | -7/Deep Caves | Identified Zio. Weapon Casing 26679 | -7/Deep Caves | Found Zio. Weapon Casing 27490 | -7/Deep Caves | Spotted as-79127 27502 | -7/Deep Caves | Destroyed as-79127 27535 | -7/Deep Caves | Triggered Deep Caves wall 27535 | -7/Deep Caves | Exposed GOLEM chamber 27536 | -7/Deep Caves | Spotted AS-58176 27552 | -7/Deep Caves | Spotted AS-64465 27562 | -7/Deep Caves | Found Unknown Device 27568 | -7/Deep Caves | Found Unknown Device 27592 | -7/Deep Caves | Allies destroyed AS-64465 27599 | -7/Deep Caves | Spotted as-35412 27607 | -7/Deep Caves | Destroyed as-35412 27640 | -7/Deep Caves | Destroyed AS-58176 27671 | -7/Deep Caves | Found Unknown Device 27676 | -7/Deep Caves | Found Unknown Device 27831 | -7/Deep Caves | Destroyed 13 combat bots 27922 | -7/Deep Caves | Destroyed 7 combat bots 27948 | -7/Deep Caves | Found Unknown Device 28112 | -7/Deep Caves | Identified GOLEM Unit (x5) 28427 | -7/Deep Caves | Build established: Scavenger-Golem 28520 | -7/Deep Caves | Found Prototype Processor 28676 | -7/Deep Caves | Discovered new exit (range 7) 28838 | -7/Deep Caves | Build established: Golem 28984 | -7/Deep Caves | Found Zio. Weapon Casing 29018 | -7/Deep Caves | Found Zio. Weapon Casing 29333 | -7/Deep Caves | Entered Proximity Caves 29333 | -6/Proximity Caves | Accompanied by 1 ally (5H-AD0) 29340 | -6/Proximity Caves | Thanked by 5H-AD0 29825 | -6/Proximity Caves | Received a Behemoth hack from an annoying Tinkerer 31456 | -6/Proximity Caves | Discovered exit to Factory (range 6) 32034 | -6/Proximity Caves | Entered Factory 32034 | -6/Factory | Evolved 2 slots: Utility x2 32035 | -6/Factory | Identified exit to Factory 32036 | -6/Factory | Loaded intel: 213 non-interactive machine locations 32340 | -6/Factory | Build established: Mutant 32581 | -6/Factory | Discovered new exit (range 6) 32768 | -6/Factory | Discovered new exit (range 15) 32832 | -6/Factory | Spotted B-75 Beast 33191 | -6/Factory | Discovered new exit (range 6) 33264 | -6/Factory | Build established: Golem 33428 | -6/Factory | Identified exit to Lower Caves 33646 | -6/Factory | Entered Extension 33971 | -6/Extension | Build established: Scavenger-Mutant 34665 | -6/Extension | Build established: Commander-Golem 34868 | -6/Extension | Spotted B-75 Beast 34876 | -6/Extension | Destroyed B-75 Beast 34887 | -6/Extension | Spotted B-75 Beast 34895 | -6/Extension | Destroyed B-75 Beast 35652 | -6/Extension | Rescued A7 35724 | -6/Extension | Discovered exit to Factory (range 10) 35726 | -6/Extension | Discovered new exit (range 6) 35826 | -6/Extension | Entered Cetus 35826 | -6/Cetus | Accompanied by 24 allies (A7) 35831 | -6/Cetus | Acquired a Cetus Manufacturing Module code from A7 35847 | -6/Cetus | Spotted Cetus Guard 35848 | -6/Cetus | Spotted Cetus Guard 35848 | -6/Cetus | Spotted Cetus Guard 35854 | -6/Cetus | Spotted Cetus Guard 35863 | -6/Cetus | Allies destroyed Cetus Guard 35870 | -6/Cetus | Allies destroyed Cetus Guard 35874 | -6/Cetus | Allies destroyed Cetus Guard 35874 | -6/Cetus | Allies destroyed Cetus Guard 35955 | -6/Cetus | Started Cetus Manufacturing Module 35978 | -6/Cetus | Discovered new exit (range 15) 35980 | -6/Cetus | Manufactured an Enhanced Grunt 36005 | -6/Cetus | Manufactured an Enhanced Grunt 36030 | -6/Cetus | Manufactured an Enhanced Grunt 36055 | -6/Cetus | Manufactured an Enhanced Grunt 36080 | -6/Cetus | Manufactured an Enhanced Grunt 36086 | -6/Cetus | Spotted Cetus Guard 36086 | -6/Cetus | Spotted Cetus Guard 36090 | -6/Cetus | Spotted Cetus Guard 36094 | -6/Cetus | Spotted Cetus Guard 36097 | -6/Cetus | Allies destroyed Cetus Guard 36104 | -6/Cetus | Allies destroyed Cetus Guard 36106 | -6/Cetus | Allies destroyed Cetus Guard 36108 | -6/Cetus | Allies destroyed Cetus Guard 36116 | -6/Cetus | Discovered exit to Factory (range 16) 36129 | -6/Cetus | Build established: Commander-Mutant 36172 | -6/Cetus | Destroyed A7 36173 | -6/Cetus | Found Prototype Protection 36173 | -6/Cetus | Identified Med. Regenerative Plating 36182 | -6/Cetus | Extracted ID and sensor layout for unrecognized location from A7's data core 36226 | -6/Cetus | Entered Archives 36226 | -6/Archives | Accompanied by 5 allies 36608 | -6/Archives | Build established: Commander-Golem 36949 | -6/Archives | Discovered new exit (range 15) 37249 | -6/Archives | Entered Hub_04(d) 37249 | -6/Hub_04(d) | Accompanied by 5 allies 37315 | -6/Hub_04(d) | Garrison activated, responded to threat 37431 | -6/Hub_04(d) | Spotted B-75 Beast 37442 | -6/Hub_04(d) | Allies destroyed B-75 Beast 37473 | -6/Hub_04(d) | Network Hub disabled 37566 | -6/Hub_04(d) | Network Hub disabled 37741 | -6/Hub_04(d) | Network Hub disabled 37763 | -6/Hub_04(d) | Spotted Lightning 37817 | -6/Hub_04(d) | Spotted Lightning 37834 | -6/Hub_04(d) | Destroyed Lightning 37854 | -6/Hub_04(d) | Found Exp. Targeting Computer 37897 | -6/Hub_04(d) | Network Hub disabled 37941 | -6/Hub_04(d) | Spotted Lightning 37943 | -6/Hub_04(d) | Spotted Lightning 37945 | -6/Hub_04(d) | System corruption reached 10% 37946 | -6/Hub_04(d) | Entered Factory 37946 | -5/Factory | Evolved 2 slots: Utility x2 38231 | -5/Factory | Build established: Golem 38846 | -5/Factory | First assault squad dispatched 38978 | -5/Factory | Discovered new exit (range 15) 39104 | -5/Factory | Sucked down chute 39104 | -5/Factory | Entered Waste 39119 | -5/Waste | EMP discharged 39122 | -5/Waste | Spotted C-40 Crusher 39131 | -5/Waste | Destroyed C-40 Crusher 39142 | -5/Waste | Spotted C-40 Crusher 39148 | -5/Waste | Destroyed C-40 Crusher 39161 | -5/Waste | Destroyed C-40 Crusher 39163 | -5/Waste | Spotted C-40 Crusher 39174 | -5/Waste | Destroyed C-40 Crusher 39189 | -5/Waste | Spotted C-40 Crusher 39211 | -5/Waste | Destroyed C-40 Crusher 39219 | -5/Waste | EMP discharged 39235 | -5/Waste | Spotted C-40 Crusher 39251 | -5/Waste | Destroyed C-40 Crusher 39300 | -5/Waste | Discovered new exit (range 11) 39318 | -5/Waste | Entered Factory 39529 | -5/Factory | Identified 0b10 Alert Chip 39673 | -5/Factory | Repaired Centrium Medium Armor Plating 40582 | -5/Factory | Identified exit to Upper Caves 40818 | -5/Factory | First assault squad dispatched 40843 | -5/Factory | Entered Upper Caves 40978 | -5/Upper Caves | Spotted B-75 Beast 42391 | -5/Upper Caves | Discovered new exit (range 7) 42411 | -5/Upper Caves | Attracted the attention of an 0b10 checkpoint 42457 | -5/Upper Caves | Learned Factory terminal intel 43067 | -5/Upper Caves | Build established: Mutant 43297 | -5/Upper Caves | Entered another Upper Caves area 43890 | -5/Upper Caves | Attracted the attention of an 0b10 checkpoint 43967 | -5/Upper Caves | Spotted B-75 Beast 44325 | -5/Upper Caves | Discovered new exit (range 5) 44950 | -5/Upper Caves | Attracted the attention of an 0b10 base 45090 | -5/Upper Caves | Learned Research trap positions 45137 | -5/Upper Caves | Discovered new exit (range 5) 45358 | -5/Upper Caves | Entered Warlord 45419 | -5/Warlord | System corruption cleaned by Quarantine Array 45988 | -5/Warlord | Build established: Commander-Golem 46077 | -5/Warlord | Visited the Vortex Lab 46086 | -5/Warlord | Warlord's base attacked by MAIN.C 46089 | -5/Warlord | Found Prototype Energy Cannon 46089 | -5/Warlord | Identified Vortex Cannon 46093 | -5/Warlord | Found Prototype Energy Cannon 46093 | -5/Warlord | Identified Vortex Driver 46097 | -5/Warlord | Found Vortex Driver 46193 | -5/Warlord | Met Warlord 46213 | -5/Warlord | Found Prototype Reactor 46213 | -5/Warlord | Identified Vortex Chain Reactor 46221 | -5/Warlord | Found Prototype Device 46221 | -5/Warlord | Identified Exp. Cloaking Device 46243 | -5/Warlord | Found Prototype Device 46243 | -5/Warlord | Identified Thermal Barrier 46247 | -5/Warlord | Found Prototype Processor 46247 | -5/Warlord | Identified Exp. Target Analyzer 46431 | -5/Warlord | Spotted B-86 Titan 46436 | -5/Warlord | Warlord forces counterattacked 46471 | -5/Warlord | Spotted Striker 46534 | -5/Warlord | Spotted Executioner 46587 | -5/Warlord | Spotted Striker 46587 | -5/Warlord | Spotted Executioner 46591 | -5/Warlord | Spotted Striker 46608 | -5/Warlord | Destroyed Striker 46686 | -5/Warlord | Spotted Executioner 46686 | -5/Warlord | Spotted Striker 46698 | -5/Warlord | Destroyed Striker 46719 | -5/Warlord | Destroyed 14 combat bots 46736 | -5/Warlord | Crushed by falling debris 46761 | -5/Warlord | Warlord base infiltrated, sounded retreat 46923 | -5/Warlord | Spotted Striker 46934 | -5/Warlord | Spotted Executioner 46988 | -5/Warlord | Discovered new exit (range 14) 47010 | -5/Warlord | Spotted Striker 47100 | -5/Warlord | Entered Proximity Caves 47100 | -4/Proximity Caves | Accompanied by 4 allies 47145 | -4/Proximity Caves | Learned location of Quarantine (-3) 47490 | -4/Proximity Caves | Build established: Mutant 47565 | -4/Proximity Caves | Spotted B-86 Titan 47567 | -4/Proximity Caves | Learned Research terminal intel 47585 | -4/Proximity Caves | Destroyed B-86 Titan 48592 | -4/Proximity Caves | Learned location of 1 exit from Research 48852 | -4/Proximity Caves | Discovered new exit (range 8) 49019 | -4/Proximity Caves | Entered Factory 49019 | -4/Factory | Accompanied by 3 allies 49019 | -4/Factory | Evolved 2 slots: Power x1, Propulsion x1 49020 | -4/Factory | Loaded intel: 26 terminal locations 49147 | -4/Factory | Identified exit to Upper Caves 49147 | -4/Factory | Identified exit to Armory 49620 | -4/Factory | Build established: Generator-Mutant 49838 | -4/Factory | Destroyed 8 combat bots 50071 | -4/Factory | Discovered new exit (range 17) 50145 | -4/Factory | Build established: Generator-Golem 50635 | -4/Factory | Entered Armory 51302 | -4/Armory | Destroyed 10 combat bots 51790 | -4/Armory | Fabricated Quantum Reactor? 52095 | -4/Armory | Build established: Generator-Mutant 52109 | -4/Armory | Discovered new exit (range 3) 52134 | -4/Armory | Discovered new exit (range 16) 52196 | -4/Armory | Found Prototype Processor 52196 | -4/Armory | Identified Exp. Signal Interpreter 52205 | -4/Armory | Found Prototype Hackware 52257 | -4/Armory | Identified exit to Lab 52259 | -4/Armory | Entered Lab 52259 | -4/Lab | Discovered new exit (range 10) 52330 | -4/Lab | Identified exit to Research 52337 | -4/Lab | Hidden lab's door opened automatically 52337 | -4/Lab | Sensor layout match revealed 52338 | -4/Lab | Gained access to the hidden lab's interior 52428 | -4/Lab | Found Alien Artifact 52800 | -4/Lab | Found Prototype Special Weapon 52800 | -4/Lab | Identified Gui. Remote Datajack 52882 | -4/Lab | Found Alien Artifact 52882 | -4/Lab | Identified Core Regenerator 52882 | -4/Lab | Used Core Regenerator, restored core integrity (+198) 53023 | -4/Lab | Found Alien Artifact 53023 | -4/Lab | Identified Integrated Dissipator 53023 | -4/Lab | Installed Integrated Dissipator, increased core heat dissipation (+20) 53032 | -4/Lab | Found Alien Artifact 53381 | -4/Lab | Found Prototype Energy Cannon 53382 | -4/Lab | Identified Warp Cannon 53388 | -4/Lab | Found Warp Cannon 53762 | -4/Lab | Found Prototype Device 53763 | -4/Lab | Identified AEGIS Remote Shield 53768 | -4/Lab | Found Prototype Hackware 54376 | -4/Lab | Entered Research 54376 | -3/Research | Evolved 2 slots: Propulsion x2 54377 | -3/Research | Identified exit to Research 54378 | -3/Research | Loaded intel: 78 trap records 54379 | -3/Research | Loaded intel: 24 terminal locations 54414 | -3/Research | Identified exit to Quarantine 54435 | -3/Research | Build established: Generator-Golem 54507 | -3/Research | Identified Exp. System Shield 54507 | -3/Research | Identified Quantum Router 54507 | -3/Research | Identified Core Reset Matrix 54507 | -3/Research | Identified Transdimensional Reconstructor 54576 | -3/Research | Revision forces began assault on 0b10 54588 | -3/Research | Met up with Revision 17++ 55076 | -3/Research | Research terminal network offline 56102 | -3/Research | Spotted Striker 56105 | -3/Research | Spotted Striker 56472 | -3/Research | Build established: Generator-Mutant 56624 | -3/Research | Entered Quarantine 56634 | -3/Quarantine | Used Core Reset Matrix 56638 | -3/Quarantine | Detected hypermatrix surge 56638 | -3/Quarantine | Sensed 10 artifacts in vicinity 56681 | -3/Quarantine | Found Subatomic Replicator 56743 | -3/Quarantine | Cryocooling Duct disabled 56745 | -3/Quarantine | Cryocooling Duct disabled 56758 | -3/Quarantine | Ambient heat levels rising (+20) 56758 | -3/Quarantine | Non-combat units ordered to evacuate 56760 | -3/Quarantine | Ambient heat levels rising (+20) 56760 | -3/Quarantine | Combat units ordered to evacuate 56860 | -3/Quarantine | Quarantine Guard activated 57028 | -3/Quarantine | Spotted Quarantine Guard 57059 | -3/Quarantine | Destroyed Quarantine Guard 57072 | -3/Quarantine | Spotted Quarantine Guard 57116 | -3/Quarantine | Destroyed Quarantine Guard 57173 | -3/Quarantine | Found Sigix Broadsword 57513 | -3/Quarantine | Spotted Quarantine Guard 57518 | -3/Quarantine | Destroyed Quarantine Guard 57652 | -3/Quarantine | Spotted Quarantine Guard 57656 | -3/Quarantine | Destroyed Quarantine Guard 57842 | -3/Quarantine | Spotted Quarantine Guard 57849 | -3/Quarantine | Spotted Quarantine Guard 57851 | -3/Quarantine | Destroyed Quarantine Guard 57859 | -3/Quarantine | Destroyed Quarantine Guard 57895 | -3/Quarantine | Spotted Quarantine Guard 57916 | -3/Quarantine | Destroyed Quarantine Guard 58036 | -3/Quarantine | Spotted Quarantine Guard 58038 | -3/Quarantine | Destroyed Quarantine Guard 58438 | -3/Quarantine | Spotted Quarantine Guard 58446 | -3/Quarantine | Spotted Quarantine Guard 58470 | -3/Quarantine | Destroyed Quarantine Guard 58528 | -3/Quarantine | Destroyed Quarantine Guard 58544 | -3/Quarantine | Discovered exit to Research (range 5) 58568 | -3/Quarantine | Spotted Quarantine Guard 58584 | -3/Quarantine | Destroyed Quarantine Guard 59902 | -3/Quarantine | Found Unknown Piercing Weapon 59905 | -3/Quarantine | Identified Enh. Force Lance 60228 | -3/Quarantine | Found Core Stripper 60261 | -3/Quarantine | Found Prototype Slashing Weapon 60269 | -3/Quarantine | Identified Nanosword 60534 | -3/Quarantine | Spotted Fortress 60559 | -3/Quarantine | Destroyed Fortress 60597 | -3/Quarantine | Found Prototype Device 60601 | -3/Quarantine | Found Prototype Device 60604 | -3/Quarantine | Identified Exp. Force Field 60610 | -3/Quarantine | Identified Thermal Barrier 60662 | -3/Quarantine | Found Prototype Reactor 60668 | -3/Quarantine | Identified Vortex Chain Reactor 60683 | -3/Quarantine | Found Prototype Protection 60698 | -3/Quarantine | Identified Centrium Heavy Armor Plating 60710 | -3/Quarantine | Found Unknown Protection 60717 | -3/Quarantine | Identified Hvy. Insulated Plating 60731 | -3/Quarantine | Found Unknown Device 60734 | -3/Quarantine | Identified Antimissile System 60808 | -3/Quarantine | Found Prototype Device 60810 | -3/Quarantine | Identified Exp. EM Disruption Field 62743 | -3/Quarantine | Discovered new exit (range 6) 62743 | -3/Quarantine | Spotted Quarantine Guard 62755 | -3/Quarantine | Destroyed Quarantine Guard 62766 | -3/Quarantine | Identified exit to Section 7 62784 | -3/Quarantine | Entered Section 7 62785 | -3/Section 7 | Sensed 21 artifacts in vicinity 62854 | -3/Section 7 | Found Integrity Redistributor 62854 | -3/Section 7 | Used Integrity Redistributor, redistributed integrity from core (-180) 62983 | -3/Section 7 | Found Integrated Mediator 62983 | -3/Section 7 | Installed Integrated Mediator, increased core attachment efficiency. 63105 | -3/Section 7 | Found Integrity Redistributor 63138 | -3/Section 7 | Found Integrity Redistributor 63327 | -3/Section 7 | Spotted S7 Guard 63378 | -3/Section 7 | Destroyed S7 Guard 63395 | -3/Section 7 | Found Prototype Protection 63395 | -3/Section 7 | Identified Hvy. Regenerative Plating 63404 | -3/Section 7 | Found Core Regenerator 63652 | -3/Section 7 | Spotted B-99 Colossus 63755 | -3/Section 7 | Used Subatomic Replicator to replicate LRC Storage 63756 | -3/Section 7 | Found LRC Storage 63756 | -3/Section 7 | Installed LRC Storage, increased inventory capacity (+2) 63759 | -3/Section 7 | Installed LRC Storage, increased inventory capacity (+2) 63768 | -3/Section 7 | Found LRC Energy Well 63824 | -3/Section 7 | Found Integrity Redistributor 63826 | -3/Section 7 | Found Integrity Redistributor 63829 | -3/Section 7 | Found Integrity Redistributor 63866 | -3/Section 7 | Installed LRC Energy Well, increased energy storage capacity (+250) 63974 | -3/Section 7 | Found Transdimensional Reconstructor 63977 | -3/Section 7 | Found Hpw. Transdimensional Reconstructor 64167 | -3/Section 7 | Spotted Alpha 7 64177 | -3/Section 7 | Destroyed Alpha 7 64202 | -3/Section 7 | Found Prototype Ballistic Gun 64202 | -3/Section 7 | Identified Multirail 64258 | -3/Section 7 | Spotted Alpha 7 64269 | -3/Section 7 | Destroyed Alpha 7 64402 | -3/Section 7 | Build established: Alien-Mutant 64449 | -3/Section 7 | Discovered exit to Research (range 11) 64541 | -3/Section 7 | Entered Research 64541 | -2/Research | Warlord forces began assault on 0b10 64541 | -2/Research | Evolved 2 slots: Weapon x2 64651 | -2/Research | Research machine network offline 64733 | -2/Research | Discovered new exit (range 3) 64736 | -2/Research | Identified exit to Access 64771 | -2/Research | Discovered new exit (range 15) 64796 | -2/Research | Identified exit to Testing 64845 | -2/Research | Build established: Alien-Assassin 64850 | -2/Research | Borebot progress halted 65125 | -2/Research | Borebot progress halted 65162 | -2/Research | Entered Testing 65253 | -2/Testing | Garrison activated, responded to threat 65786 | -2/Testing | Spotted PL-XOESL3UM24 65826 | -2/Testing | Rewired PL-XOESL3UM24 66087 | -2/Testing | Destroyed PL-XOESL3UM24 66209 | -2/Testing | Found Prototype Device 66209 | -2/Testing | Identified Exp. Hardlight Generator 66424 | -2/Testing | Found Unknown Device 66424 | -2/Testing | Identified Adv. Force Booster 66757 | -2/Testing | Found Prototype Energy Cannon 66757 | -2/Testing | Identified Cld. Nova Cannon 66927 | -2/Testing | Discovered exit to Access (range 14) 67585 | -2/Testing | Used Integrity Redistributor, redistributed integrity from core (-245) 67593 | -2/Testing | Entered Access 67593 | -1/Access | Evolved 2 slots: Power x1, Utility x1 67859 | -1/Access | Found Antimissile System 67863 | -1/Access | Found Antimissile System 68250 | -1/Access | Build established: Generator-Mutant 68594 | -1/Access | Spotted B-99 Colossus 68598 | -1/Access | Warped through subspace 68768 | -1/Access | Destroyed 7 combat bots 68843 | -1/Access | First assault squad dispatched 68843 | -1/Access | Discovered new exit (range 8) 68852 | -1/Access | Identified exit to Command 69041 | -1/Access | Entered Command 69233 | -1/Command | Spotted B-99 Colossus 69775 | -1/Command | Spotted B-99 Colossus 69792 | -1/Command | Spotted Striker 69821 | -1/Command | Spotted Alpha 7 69834 | -1/Command | Destroyed Alpha 7 69847 | -1/Command | Destroyed Striker 69874 | -1/Command | Destroyed 8 combat bots 69994 | -1/Command | Disengaged cave seal 69994 | -1/Command | Derelicts emerged from the dark tunnel 69994 | -1/Command | Welcomed Warlord to Command 70071 | -1/Command | P-80 Master assimilated allied CA-0VD(M) 70091 | -1/Command | First assault squad dispatched 70127 | -1/Command | Build established: Alien-Mutant 70835 | -1/Command | P-80 Master assimilated allied EY-T1P(g) 71706 | -1/Command | Destroyed B-99 Colossus 77850 | -1/Command | Warlord commented on Warlord statues 77850 | -1/Command | Spotted M Guard 77851 | -1/Command | Spotted Combat Programmer 77878 | -1/Command | Spotted M Guard 77878 | -1/Command | Spotted Combat Programmer 77895 | -1/Command | Destroyed Combat Programmer 77899 | -1/Command | Destroyed Combat Programmer 77903 | -1/Command | Destroyed M Guard 77956 | -1/Command | Destroyed M Guard 77956 | -1/Command | All MAIN.C guards destroyed 77963 | -1/Command | Found AEGIS Remote Shield 77971 | -1/Command | Found Prototype Reactor 77971 | -1/Command | Identified Zero-point Reactor 77975 | -1/Command | Found Zero-point Reactor 77985 | -1/Command | Found Prototype Launcher 77985 | -1/Command | Identified Adv. Micro-nuke Launcher 77997 | -1/Command | Found Hvy. Regenerative Plating 78003 | -1/Command | Found Prototype Device 78003 | -1/Command | Identified Thermal Barrier 78247 | -1/Command | Build established: Generator-Mutant 78286 | -1/Command | Warlord destroyed during the assault 78286 | -1/Command | Destroyed Warlord 78306 | -1/Command | Disengaged cave seal 78594 | -1/Command | Build established: Hacker-Mutant 78770 | -1/Command | Found Exp. Targeting Computer 78885 | -1/Command | Met MAIN.C 78892 | -1/Command | 0b10 Conduit disabled 78901 | -1/Command | MAIN.C activated Command garrisons 78923 | -1/Command | Destroyed MAIN.C 78935 | -1/Command | Discovered new exit (range 34) 78935 | -1/Command | Discovered new exit (range 107) 78935 | -1/Command | Extracted map data and part IDs from MAIN.C's data core 79023 | -1/Command | Build established: Generator-Mutant 79217 | -1/Command | Found Exp. System Purifier 79337 | -1/Command | Found Null Cannon 81659 | -1/Command | Found Exp. Core Analyzer 82042 | -1/Command | Found Multirail 82045 | -1/Command | Found Multirail 82062 | -1/Command | Found Corrupted Multirail 82065 | -1/Command | Found Corrupted Multirail 82156 | -1/Command | Found Exp. Target Analyzer 82398 | -1/Command | Phase Generator disabled 82748 | -1/Command | Found Multirail 82756 | -1/Command | Found Multirail 83385 | -1/Command | Found Adv. Kinecellerator 83467 | -1/Command | Build established: Generator-Gunner 83603 | -1/Command | Found Adv. Kinecellerator 83672 | -1/Command | Found Adv. Kinecellerator 84149 | -1/Command | Build established: Generator-Mutant 85002 | -1/Command | Found Vortex Chain Reactor 85005 | -1/Command | Found Zero-point Reactor 85007 | -1/Command | Found Exp. Weapon Cycler 85011 | -1/Command | Found Exp. Target Analyzer 85356 | -1/Command | Build established: Generator-Gunner 85834 | -1/Command | Used Integrity Redistributor, redistributed integrity from core (-335) 85942 | -1/Command | Used Core Regenerator, restored core integrity (+400) 86318 | -1/Command | Warped through subspace to slip node 86318 | -1/Command | Discovered new exit (range 4) 87316 | -1/Command | Entered Access_0 87316 | -1/Access_0 | Accompanied by 1 ally 87317 | -1/Access_0 | Sensed 2 artifacts in vicinity 87319 | -1/Access_0 | Met Architect 87325 | -1/Access_0 | Architect warped through subspace 87339 | -1/Access_0 | Allies destroyed A8 87353 | -1/Access_0 | Architect warped through subspace 87378 | -1/Access_0 | Architect warped through subspace 87416 | -1/Access_0 | Architect warped through subspace 87443 | -1/Access_0 | Architect warped through subspace 87472 | -1/Access_0 | Architect warped through subspace 87493 | -1/Access_0 | Architect warped through subspace 87513 | -1/Access_0 | Architect warped through subspace 87537 | -1/Access_0 | Architect warped through subspace 87546 | -1/Access_0 | Found Prototype Device 87546 | -1/Access_0 | Identified Desublimator 87561 | -1/Access_0 | Destroyed 8 combat bots 87631 | -1/Access_0 | Architect warped through subspace 87676 | -1/Access_0 | Architect warped through subspace 87705 | -1/Access_0 | A6 warped into view 87713 | -1/Access_0 | Destroyed A6 87716 | -1/Access_0 | Architect warped through subspace 87781 | -1/Access_0 | Architect warped through subspace 87806 | -1/Access_0 | Architect warped through subspace 87831 | -1/Access_0 | Architect warped through subspace 87856 | -1/Access_0 | Used Integrity Redistributor, redistributed integrity from core (-223) 87878 | -1/Access_0 | Core integrity fell below 50% 87881 | -1/Access_0 | Architect warped through subspace 87898 | -1/Access_0 | Build established: Generator-Mutant 87903 | -1/Access_0 | Architect warped through subspace 87932 | -1/Access_0 | Architect warped through subspace 87967 | -1/Access_0 | Architect warped through subspace 88005 | -1/Access_0 | Architect warped through subspace 88043 | -1/Access_0 | Architect warped through subspace 88073 | -1/Access_0 | Architect warped through subspace 88108 | -1/Access_0 | Architect warped through subspace 88132 | -1/Access_0 | A5 warped into view 88144 | -1/Access_0 | Architect warped through subspace 88168 | -1/Access_0 | Destroyed A5 88180 | -1/Access_0 | Architect warped through subspace 88189 | -1/Access_0 | Destroyed 7 combat bots 88217 | -1/Access_0 | Architect warped through subspace 88230 | -1/Access_0 | Subspace Access Node disabled 88276 | -1/Access_0 | Architect warped through subspace 88327 | -1/Access_0 | Architect warped through subspace 88366 | -1/Access_0 | Architect warped through subspace 88397 | -1/Access_0 | Architect warped through subspace 88410 | -1/Access_0 | Found Exp. Targeting Computer 88440 | -1/Access_0 | Architect warped through subspace 88468 | -1/Access_0 | Architect warped through subspace 88508 | -1/Access_0 | Architect warped through subspace 88545 | -1/Access_0 | Architect warped through subspace 88584 | -1/Access_0 | Architect warped through subspace 88617 | -1/Access_0 | Architect warped through subspace 88643 | -1/Access_0 | Architect warped through subspace 88674 | -1/Access_0 | Build established: Generator-Gunner 88705 | -1/Access_0 | Architect warped through subspace 88733 | -1/Access_0 | Architect warped through subspace 88774 | -1/Access_0 | Architect warped through subspace 88803 | -1/Access_0 | Architect warped through subspace 88837 | -1/Access_0 | Architect warped through subspace 88842 | -1/Access_0 | Subspace Access Node disabled 88887 | -1/Access_0 | Architect warped through subspace 88933 | -1/Access_0 | Architect warped through subspace 88939 | -1/Access_0 | A4 warped into view 88958 | -1/Access_0 | Destroyed A4 88976 | -1/Access_0 | Architect warped through subspace 89007 | -1/Access_0 | Build established: Generator-Mutant 89015 | -1/Access_0 | Architect warped through subspace 89048 | -1/Access_0 | Architect warped through subspace 89082 | -1/Access_0 | Architect warped through subspace 89108 | -1/Access_0 | Architect warped through subspace 89142 | -1/Access_0 | Architect warped through subspace 89162 | -1/Access_0 | Architect warped through subspace 89178 | -1/Access_0 | Core integrity fell below 20% 89206 | -1/Access_0 | Architect warped through subspace 89227 | -1/Access_0 | Architect warped through subspace 89263 | -1/Access_0 | Architect warped through subspace 89286 | -1/Access_0 | Architect warped through subspace 89327 | -1/Access_0 | Subspace Access Node disabled 89335 | -1/Access_0 | Architect warped through subspace 89364 | -1/Access_0 | Architect warped through subspace 89396 | -1/Access_0 | Architect warped through subspace 89413 | -1/Access_0 | Found Prototype Protection 89413 | -1/Access_0 | Identified Exp. Powered Armor 89422 | -1/Access_0 | Architect warped through subspace 89428 | -1/Access_0 | Found Exp. Powered Armor 89431 | -1/Access_0 | Used Integrity Redistributor, redistributed integrity to core (+289) 89454 | -1/Access_0 | Architect warped through subspace 89494 | -1/Access_0 | Architect warped through subspace 89517 | -1/Access_0 | Architect warped through subspace 89519 | -1/Access_0 | Found Sigix Corpse 89541 | -1/Access_0 | Architect warped through subspace 89558 | -1/Access_0 | Architect warped through subspace 89581 | -1/Access_0 | Architect warped through subspace 89597 | -1/Access_0 | Architect warped through subspace 89638 | -1/Access_0 | Subspace Access Node disabled 89667 | -1/Access_0 | Destroyed Architect 89668 | -1/Access_0 | Architect triggered a singularity event 89669 | -1/Access_0 | Released all parts (21) 89670 | -1/Access_0 | Found Hpw. Transdimensional Reconstructor 89670 | -1/Access_0 | Warped through subspace to slip node 89670 | -1/Access_0 | Discovered new exit (range 8) 89675 | *** | Escaped singularity! Last Messages --------------- 89669_ Released Exp. Targeting Computer. 89669_ Released Exp. Target Analyzer. 89669_ Released Imp. Armor Integrity Analyzer. 89669_ Released Hvy. Regenerative Plating. 89669_ Released Antimatter Reactor. 89669_ Released AEGIS Remote Shield. 89669_ Released Exp. Weapon Cycler. 89669_ Released Imp. Quantum Reactor. 89669_ Released Multirail. 89669_ Released Exp. Powered Armor. 89669_ Released Multirail. 89670_ A0_COM: 9. 89670_ Acquired Hpw. Transdimensional Reconstructor. 89670_ Warped through subspace, drawn to slip node. 89670_ EXIT=FOUND 89671_ A0_COM: 8. 89672_ A0_COM: 7. 89673_ A0_COM: 6. 89674_ A0_COM: 5. 89675_ A0_COM: 4. Map ----- +----------------------------------------------------+ | | | | | | | | | | | | | | | | | | | | | | | | | | | | | | | | | ?????????????????????????????????????????????????? | | ?????????????????????????????????????????????????? | | ?????????????????????????????????????????????????? | | ?????????????????????????????????????????????????? | | ?????????????????????????????????????????????????? | | ?????????????????????????????????????????????????? | | ????????????????????????###??????????????????????? | | ???????????????????????## ##?????????????????????? | | ???????????????????????# #?????????????????????? | | ???????????????????????# @ #?????????????????????? | | ??????????????????????## #?????????????????????? | | ??????????????????????# #?????????????????????? | | ??????????????????????# ##?????????????????????? | | ??????????????????????## #?????????????????????? | | ??????????????????????# #?????????????????????? | | ??????????????????????# ##?????????????????????? | | ??????????????????????# < #?????????????????????? | | ??????????????????????# ##?????????????????????? | | ??????????????????????## #??????????????????????? | | ???????????????????????####??????????????????????? | | ?????????????????????????????????????????????????? | | ?????????????????????????????????????????????????? | | ?????????????????????????????????????????????????? | | ?????????????????????????????????????????????????? | | ?????????????????????????????????????????????????? | | ?????????????????????????????????????????????????? | | ?????????????????????????????????????????????????? | | ?????????????????????????????????????????????????? | | ?????????????????????????????????????????????????? | | ?????????????????????????????????????????????????? | | ?????????????????????????????????????????????????? | | ?????????????????????????????????????????????????? | | ?????????????????????????????????????????????????? | | ?????????????????????????????????????????????????? | +----------------------------------------------------+ Best States ------------- Heat Dissipation 172 Energy Generation 111 Energy Capacity 2430 Matter Stores 745 Matter Capacity 800 Sight Range 23 Robot Scan Range 20 Terrain Scan Range 20 Terrain Scan Density 10 Jamming Range 16 Cloak Strength 4 Additional Mass Support 20 Armor Coverage 2000 Resistance: KI 30 Resistance: TH 15 Resistance: EX 15 Resistance: EM 75 Resistance: I 15 Resistance: S 15 Resistance: P 15 Core Shielding 40 Weapon Shielding 100 Point Defense Rating 240 Weapon Cycling 30 Phase Shifting 8 Evasion (%) 55 Targeting Accuracy 32 Target Analysis 10 Core Analysis 8 Armor Integrity Analysis 40 Recoil Reduction 6 Kinecelleration 50 Salvage Targeting 2 Offensive Hacking 46 Defensive Hacking 12 Authchip Count 1 Item Schematics ----------------- Imp. Thermal Defense Suite | -3/Quarantine | Archive Spectral Analyzer | -3/Quarantine | Archive Helical Railgun | -3/Quarantine | Archive Cld. Nuclear Pulse Thruster | -3/Quarantine | Archive Hvy. Dispersion Rifle | -3/Quarantine | Archive Exp. Matter Compressor | -3/Quarantine | Archive Hvy. Neutron Cannon | -3/Quarantine | Archive Adv. KE Penetrator | -3/Quarantine | Archive Hvy. Proton Cannon | -3/Quarantine | Archive Prc. Matter Filter | -3/Quarantine | Archive Gravity Flail | -3/Quarantine | Archive Cld. Impulse Thruster | -3/Quarantine | Archive Exp. Signal Interpreter | -3/Quarantine | Archive Thunder Hammer | -3/Quarantine | Archive Hvy. Tesla Rifle | -3/Quarantine | Archive Exp. Focal Shield | -3/Quarantine | Archive Imp. Q-thruster | -2/Testing | Archive Adv. Variable Charge Gun | -2/Testing | Archive Adv. Kinecellerator | -2/Testing | Archive Prc. Phase Gun | -2/Testing | Archive Robot Schematics ------------------ R-06 Scavenger | -3/Quarantine | Archive A-02 Transporter | -3/Quarantine | Archive S-43 Plague | -3/Quarantine | Archive K-01 Serf | -3/Quarantine | Archive C-55 Analyst | -3/Quarantine | Archive T-07 Excavator | -3/Quarantine | Archive A-15 Conveyor | -3/Quarantine | Archive Fabricated ------------ Quantum Reactor | x2 | -4/Armory | Preloaded Alien Tech Used ----------------- Core Regenerator Integrated Dissipator Core Reset Matrix Subatomic Replicator Core Stripper Integrity Redistributor Integrated Mediator LRC Storage LRC Energy Well Sigix Broadsword High-powered Transdimensional Reconstructor Transdimensional Reconstructor Achievements -------------- None Challenges ------------ None Game ------ Seed FrostVisualNanoactuators Manual? 0 Play Time 07:51:53 Cumulative 745.8 hours Start 2022.05.28 @ 09:34:58 End 2022.05.28 @ 20:18:25 Sessions 1 Manual Loads 0 Difficulty Rogue Special Mode None Game No. 322 Rogue 321 Adventurer 1 Explorer 0 Win Type 6 Total 83 Types 24/9/12/3/2/1/30/1/1 Lore% 98 Gallery% 99 Achievement% 90 Wizard Run 0 Options --------- ASCII 1 Keyboard 1 Movement Numpad Keybinds 0 Fullscreen 0 Font 18/Smallcaps Map View 76x50 Tactical HUD 1 Map Filters NONE Filters NONE Steam 1 RUN: 8080103d-dab0-496c-846c-f8678ab3e283